{"text_format":"1","workbook":"xlsx","n_sheets":4,"sheets":["Encues. Satisfacción Presencial","Tabulación Enc. Presencial","Encuesta Satisfacción Virtual","Tabulación Enc. Virtual"],"not_rendered":{"charts":0,"images":1,"macros":1,"external_links":4,"defined_names":28,"comments":4,"pivot_tables":0},"unopened":[],"bounds":{"document_bytes":16777216,"sheet_cells":100000,"rows_first":2000,"rows_last":500,"rows_between":2000,"halvings":0,"cell_chars":16384,"cell_head_chars":4096},"cells_cut":0,"cells_raw":0,"read":"whole","date_system":"1900"}

{"sheet":"Encues. Satisfacción Presencial","index":0,"n_rows":82,"n_cols":254,"rows_kept":82,"cut":false,"hidden":false,"merged":[[75,1,75,9],[72,1,72,9],[73,1,73,9],[74,1,74,9],[70,1,70,9],[76,0,76,14],[77,0,79,14],[80,0,80,14],[81,0,83,14],[37,1,37,9],[66,1,66,9],[71,0,71,9],[71,10,71,14],[64,1,64,9],[65,1,65,9],[67,0,67,9],[67,10,67,14],[68,1,68,9],[69,1,69,9],[59,1,59,9],[60,0,60,9],[60,10,60,14],[61,1,61,9],[62,1,62,9],[63,1,63,9],[54,1,54,9],[55,1,55,9],[56,0,56,9],[56,10,56,14],[57,1,57,9],[58,1,58,9],[53,1,53,9],[44,1,44,9],[45,1,45,9],[46,0,46,9],[46,10,46,14],[47,1,47,9],[48,0,48,9],[49,0,49,9],[49,10,49,14],[50,1,50,9],[51,1,51,9],[52,1,52,9],[43,0,43,9],[43,10,43,14],[31,1,31,14],[32,0,34,14],[35,0,35,9],[35,10,35,14],[36,1,36,9],[38,1,38,9],[39,0,39,9],[40,0,40,9],[40,10,40,14],[41,1,41,9],[42,1,42,9],[30,10,30,14],[18,0,18,14],[20,0,20,14],[22,0,22,9],[23,0,23,9],[23,10,23,14],[24,1,24,9],[25,1,25,9],[27,1,27,9],[28,1,28,9],[29,1,29,9],[30,0,30,9],[26,0,26,9],[26,10,26,14],[17,0,17,14],[5,0,5,14],[7,4,7,5],[7,8,7,9],[9,0,9,2],[9,3,9,14],[12,0,12,1],[12,2,12,5],[12,7,12,9],[12,10,12,14],[14,0,14,1],[14,2,14,5],[14,10,14,14],[15,0,15,1],[15,2,15,5],[0,0,4,0],[0,1,4,10],[0,11,1,12],[0,13,1,14],[2,11,3,12],[2,13,3,14],[4,11,4,14]]}
[null,"PROCESO DE GESTIÓN DEL TALENTO HUMANO\n\nFORMATO ENCUESTA DE SATISFACCIÓN DE BIENESTAR SOCIAL E INCENTIVOS \nACTIVIDAD PRESENCIAL",null,null,null,null,null,null,null,null,null,"F6.P1.GTH",null,"2020-08-31"]
[]
[null,null,null,null,null,null,null,null,null,null,null,"Versión 4",null,"Página 1 de 1"]
[]
[null,null,null,null,null,null,null,null,null,null,null,"Clasificación de la información\nPública"]
[]
[]
[null,null,null,"Fecha: ","Día ",null,null,null,"Mes",null,null,null,"Año"]
[]
["NOMBRE DE LA ACTIVIDAD:"]
[]
[]
["Nombre y Apellidos",null,"_____________________________________",null,null,null,null,"Regional / Sede",null,null,"___________________________"]
[]
["Cargo:",null,"____________________________________",null,null,null,null,"Cédula",null,null,"___________________________"]
["Centro zonal o dependencia",null,"____________________________________"]
[]
["Para la Dirección de Gestión Humana es importante saber su opinión acerca de las diferentes actividades que se realizan en la Entidad para nuestros servidores públicos  y  sus familias de manera presencial, por lo tanto deseamos conocer su opinión o comentarios respecto a las actividades de Bienestar en las cuales ha participado, con el fin de mejorar cada dia. "]
["  Su opinión es de gran importancia para nosotros."]
[]
["Por favor califique cada aspecto de 1 a 5, para expresar su satisfacción teniendo en cuenta la siguiente escala, donde 1 es Totalmente Insatisfecho y 5 es Totalmente Satisfecho:"]
[]
["EXPECTATIVA DE LA ACTIVIDAD",null,null,null,null,null,null,null,null,null,1,2,3,4,5,null,null,null,null,null,null,null,null,null,null,null,null,null,null,null,null,null,null,null,null,null,null,null,null,null,null,null,null,null,null,null,null,null,null,null,null,null,null,null,null,null,null,null,null,null,null,null,null,null,null,null,null,null,null,null,null,null,null,null,null,null,null,null,null,null,null,null,null,null,null,null,null,null,null,null,null,null,null,null,null,null,null,null,null,null,null,null,null,null,null,null,null,null,null,null,null,null,null,null,null,null,null,null,null,null,null,null,null,null,null,null,null,null,null,null,null,null,null,null,null,null,null,null,null,null,null,null,null,null,null,null,null,null,null,null,null,null,null,null,null,null,null,null,null,null,null,null,null,null,null,null,null,null,null,null,null,null,null,null,null,null,null,null,null,null,null,null,null,null,null,null,null,null,null,null,null,null,null,null,null,null,null,null,null,null,null,null,null,null,null,null,null,null,null,null,null,null,null,null,null,null,null,null,null,null,null,null,null,null,null,null,null,null,null,null,null,null,null,null,null,null,null,null,null,null,null,null,null,null,null,null,null,null,null,null,null,null,null," "]
["Actividad con Familias / Unión familiar "]
[1,"La  actividad permitió la integración de su familia"]
[2,"La  actividad generó  bienestar en su familia"]
["Calidad "]
[3,"Calidad de la actividad (como le pareció la actividad realizada)"]
[4,"Considera que la actividad realizada cumplió con sus expectativas"]
[5,"La actividad fue de su interés"]
["Enseñanza o Reflexión Obtenida"]
[6,"Qué enseñanza o reflexión puede compartirnos de la actividad realizada?"]
[]
[]
[]
["Organización"]
[7,"Se le informó a tiempo de la actividad (convocatoria)"]
[8,"Cumplimiento con el horario establecido de la actividad (inicio de la actividad)"]
[9,"Organización de la actividad"]
["TALENTO HUMANO\nCompetente e idóneo",null,null,null,null,null,null,null,null,null,1,2,3,4,5]
["Coordinador del Evento "]
[10,"Habilidad en la prestación del servicio"]
[11,"Capacidad para dar soluciones y alternativas"]
["Brigadistas (Si aplica)"]
[12,"Habilidad en la prestación del servicio"]
[13,"Conocimientos al momento de prestar el servicio"]
["Jueces (Si aplica)"]
[14,"Califique el arbitraje prestado por el juez en la actividad deportiva"]
["LOGISTICA",null,null,null,null,null,null,null,null,null,1,2,3,4,5]
["Instalaciones, Escenografias y Materiales"]
[15,"Estado de las instalaciones"]
[16,"Ubicación de las instalaciones"]
[17,"Estado de los materiales recreativos y escenografías"]
[18,"Adecuación y ambientación del lugar"]
[19,"Aseo del lugar"]
[20,"Comodidad de las instalaciones"]
[" Servicios de Alimentos y Bebidas (si aplica)"]
[21,"Presentación de los alimentos y bebidas"]
[22,"Calidad de los productos de los alimentos y bebidas"]
[23,"Cumplimiento en la entrega del servicio de alimentos y bebidas"]
[" Servicio de Transporte (si aplica)"]
[24,"Cumplimiento con el horario establecido (puntualidad)"]
[25,"Aseo del bus "]
[26,"El bus se encuentra en buenas condiciones"]
[27,"Capacidad del bus / Comodidad del bus"]
[28,"Prudencia del conductor para conducir"]
[29,"Amabilidad del conductor"]
["Seguridad"]
[30,"Seguridad que ofrece el lugar"]
[31,"Seguridad de los equipos y materiales utilizados"]
[32,"Comportamiento de los asistentes"]
["Atención Prestada por parte del Operador Logístico\n(Recreadores, Brigadistas, Guias, Meseros, entre otros)"]
[33,"Servicio amable y oportuno"]
[34,"Habilidad en la prestación del servicio brindado por el operador logístico"]
[35,"Atención a solicitudes oportunas"]
[36,"Presentación personal"]
["COMENTARIOS Y/O SUGERENCIAS"]
[]
[]
[]
["Gracias!!!!"]
["Antes de imprimir este documento… piense en el medio ambiente!  \n     Cualquier copia impresa de este documento se considera como COPIA NO CONTROLADA.\nLOS DATOS PROPORCIONADOS SERÁN TRATADOS DE ACUERDO A LA POLÌTICA DE TRATAMIENTO DE DATOS PERSONALES DEL ICBF Y A LA LEY 1581 DE 2012"]

{"sheet":"Tabulación Enc. Presencial","index":1,"n_rows":200,"n_cols":58,"rows_kept":200,"cut":false,"hidden":false,"merged":[[135,56,139,56],[130,56,134,56],[124,56,128,56],[119,56,123,56],[166,56,170,56],[161,56,165,56],[150,56,154,56],[145,56,149,56],[140,56,144,56],[150,57,154,57],[161,57,165,57],[166,57,170,57],[171,57,175,57],[119,57,123,57],[124,57,128,57],[130,57,134,57],[135,57,139,57],[140,57,144,57],[145,57,149,57],[103,57,107,57],[108,57,112,57],[114,57,118,57],[66,57,70,57],[71,57,75,57],[77,57,81,57],[83,57,87,57],[88,57,92,57],[49,56,53,56],[108,56,112,56],[114,56,118,56],[49,57,53,57],[55,57,59,57],[60,57,64,57],[103,56,107,56],[93,57,97,57],[98,57,102,57],[77,56,81,56],[71,56,75,56],[66,56,70,56],[60,56,64,56],[55,56,59,56],[17,55,21,55],[23,55,27,55],[22,0,22,54],[171,55,175,55],[39,55,43,55],[55,55,59,55],[66,55,70,55],[77,55,81,55],[88,55,92,55],[98,55,102,55],[108,55,112,55],[119,55,123,55],[130,55,134,55],[140,55,144,55],[150,55,154,55],[166,55,170,55],[103,55,107,55],[114,55,118,55],[124,55,128,55],[49,55,53,55],[83,55,87,55],[93,55,97,55],[135,55,139,55],[145,55,149,55],[113,0,113,54],[114,0,118,0],[119,0,123,0],[124,0,128,0],[6,0,6,1],[7,0,7,1],[10,0,10,1],[11,0,11,54],[12,0,16,0],[7,2,7,7],[7,8,7,13],[8,2,8,7],[8,8,8,12],[33,0,37,0],[17,0,21,0],[23,0,27,0],[28,0,32,0],[38,0,38,54],[103,0,107,0],[44,0,48,0],[150,0,154,0],[161,0,165,0],[82,0,82,54],[83,0,87,0],[88,0,92,0],[93,56,97,56],[98,56,102,56],[88,56,92,56],[83,56,87,56],[93,0,97,0],[98,0,102,0],[113,55,113,57],[82,55,82,57],[155,0,159,0],[155,55,159,55],[155,56,159,56],[155,57,159,57],[129,55,129,57],[129,0,129,54],[130,0,134,0],[135,0,139,0],[140,0,144,0],[145,0,149,0],[108,0,112,0],[0,0,4,0],[0,54,1,55],[0,56,1,57],[2,54,3,55],[2,56,3,57],[4,54,4,57],[0,1,4,53],[77,0,81,0],[66,0,70,0],[71,0,75,0],[55,0,59,0],[60,0,64,0],[76,0,76,54],[65,0,65,54],[60,55,64,55],[71,55,75,55],[12,55,16,55],[17,57,21,57],[23,57,27,57],[12,57,16,57],[28,56,32,56],[23,56,27,56],[17,56,21,56],[12,56,16,56],[44,55,48,55],[44,56,48,56],[44,57,48,57],[22,55,22,57],[38,55,38,57],[54,55,54,57],[65,55,65,57],[76,55,76,57],[54,0,54,54],[39,0,43,0],[49,0,53,0],[33,55,37,55],[39,56,43,56],[33,56,37,56],[39,57,43,57],[28,55,32,55],[28,57,32,57],[33,57,37,57],[199,0,201,57],[177,55,181,55],[177,56,181,56],[177,57,181,57],[182,55,186,55],[182,56,186,56],[182,57,186,57],[187,55,191,55],[187,56,191,56],[187,57,191,57],[192,55,196,55],[192,56,196,56],[192,57,196,57],[176,0,176,54],[160,0,160,54],[160,55,160,57],[176,55,176,57],[197,57,198,57],[177,0,181,0],[182,0,186,0],[187,0,191,0],[192,0,196,0],[171,0,175,0],[166,0,170,0],[171,56,175,56],[161,55,165,55]]}
[null,"PROCESO DE GESTIÓN DEL TALENTO HUMANO\n\nFORMATO ENCUESTA DE SATISFACCIÓN DE BIENESTAR SOCIAL E INCENTIVOS ACTIVIDAD PRESENCIAL ",null,null,null,null,null,null,null,null,null,null,null,null,null,null,null,null,null,null,null,null,null,null,null,null,null,null,null,null,null,null,null,null,null,null,null,null,null,null,null,null,null,null,null,null,null,null,null,null,null,null,null,null,"F6.P1.GTH",null,"2020-08-31"]
[]
[null,null,null,null,null,null,null,null,null,null,null,null,null,null,null,null,null,null,null,null,null,null,null,null,null,null,null,null,null,null,null,null,null,null,null,null,null,null,null,null,null,null,null,null,null,null,null,null,null,null,null,null,null,null,"Versión 4",null,"Página 1 de 2"]
[]
[null,null,null,null,null,null,null,null,null,null,null,null,null,null,null,null,null,null,null,null,null,null,null,null,null,null,null,null,null,null,null,null,null,null,null,null,null,null,null,null,null,null,null,null,null,null,null,null,null,null,null,null,null,null,"Clasificación de la información\nPública"]
[]
["Nombre de la actividad de Bienestar : ________________________________________________"]
["Fecha inicio: ___________",null,"Fecha finalización: "]
[" ",null,"No. Participantes:"]
["No. encuestas diligenciadas :",0]
["CANTIDAD DE ENCUESTAS",null,1,2,3,4,5,6,7,8,9,10,11,12,13,14,15,16,17,18,19,20,21,22,23,24,25,26,27,28,29,30,31,32,33,34,35,36,37,38,39,40,41,42,43,44,45,46,47,48,49,50,"Total",null,"%"]
["Actividad con Familias / Unión familiar ",null,null,null,null,null,null,null,null,null,null,null,null,null,null,null,null,null,null,null,null,null,null,null,null,null,null,null,null,null,null,null,null,null,null,null,null,null,null,null,null,null,null,null,null,null,null,null,null,null,null,null,null,null,null,"% de respuestas contestadas","Valor total por pregunta"]
["La  actividad permitió la integración de su familia:",1,null,null,null,null,null,null,null,null,null,null,null,null,null,null,null,null,null,null,null,null,null,null,null,null,null,null,null,null,null,null,null,null,null,null,null,null,null,null,null,null,null,null,null,null,null,null,null,null,null,null,{"$f":"COUNTA(C13:AZ13)","v":0},{"$f":"+BA13*1","v":0},{"$f":"+BA13/$B$10","v":{"$error":"#DIV/0!"}},{"$f":"SUM(BC13:BC17)","v":{"$error":"#DIV/0!"}},{"$f":"SUM(BB13:BB17)","v":0},{"$f":"IF(BD13>100%,\"Verifique  diligenciamiento\",IF(BD13<100%,\"falta una respuesta\",\"ok\"))","v":{"$error":"#DIV/0!"}}]
[null,2,null,null,null,null,null,null,null,null,null,null,null,null,null,null,null,null,null,null,null,null,null,null,null,null,null,null,null,null,null,null,null,null,null,null,null,null,null,null,null,null,null,null,null,null,null,null,null,null,null,null,{"$f":"COUNTA(C14:AZ14)","v":0},{"$f":"+BA14*2","v":0},{"$f":"+BA14/$B$10","v":{"$error":"#DIV/0!"}}]
[null,3,null,null,null,null,null,null,null,null,null,null,null,null,null,null,null,null,null,null,null,null,null,null,null,null,null,null,null,null,null,null,null,null,null,null,null,null,null,null,null,null,null,null,null,null,null,null,null,null,null,null,0,{"$f":"+BA15*3","v":0},{"$error":"#DIV/0!"}]
[null,4,null,null,null,null,null,null,null,null,null,null,null,null,null,null,null,null,null,null,null,null,null,null,null,null,null,null,null,null,null,null,null,null,null,null,null,null,null,null,null,null,null,null,null,null,null,null,null,null,null,null,0,{"$f":"+BA16*4","v":0},{"$f":"+BA16/$B$10","v":{"$error":"#DIV/0!"}}]
[null,5,null,null,null,null,null,null,null,null,null,null,null,null,null,null,null,null,null,null,null,null,null,null,null,null,null,null,null,null,null,null,null,null,null,null,null,null,null,null,null,null,null,null,null,null,null,null,null,null,null,null,0,{"$f":"+BA17*5","v":0},{"$f":"+BA17/$B$10","v":{"$error":"#DIV/0!"}}]
["La  actividad generó  bienestar en su familia:",1,null,null,null,null,null,null,null,null,null,null,null,null,null,null,null,null,null,null,null,null,null,null,null,null,null,null,null,null,null,null,null,null,null,null,null,null,null,null,null,null,null,null,null,null,null,null,null,null,null,null,0,{"$f":"+BA18*1","v":0},{"$f":"+BA18/$B$10","v":{"$error":"#DIV/0!"}},{"$f":"SUM(BC18:BC22)","v":{"$error":"#DIV/0!"}},{"$f":"SUM(BB18:BB22)","v":0},{"$f":"IF(BD18>100%,\"Verifique  diligenciamiento\",IF(BD18<100%,\"falta una respuesta\",\"ok\"))","v":{"$error":"#DIV/0!"}}]
[null,2,null,null,null,null,null,null,null,null,null,null,null,null,null,null,null,null,null,null,null,null,null,null,null,null,null,null,null,null,null,null,null,null,null,null,null,null,null,null,null,null,null,null,null,null,null,null,null,null,null,null,0,{"$f":"+BA19*2","v":0},{"$error":"#DIV/0!"}]
[null,3,null,null,null,null,null,null,null,null,null,null,null,null,null,null,null,null,null,null,null,null,null,null,null,null,null,null,null,null,null,null,null,null,null,null,null,null,null,null,null,null,null,null,null,null,null,null,null,null,null,null,0,{"$f":"+BA20*3","v":0},{"$error":"#DIV/0!"}]
[null,4,null,null,null,null,null,null,null,null,null,null,null,null,null,null,null,null,null,null,null,null,null,null,null,null,null,null,null,null,null,null,null,null,null,null,null,null,null,null,null,null,null,null,null,null,null,null,null,null,null,null,0,{"$f":"+BA21*4","v":0},{"$error":"#DIV/0!"}]
[null,5,null,null,null,null,null,null,null,null,null,null,null,null,null,null,null,null,null,null,null,null,null,null,null,null,null,null,null,null,null,null,null,null,null,null,null,null,null,null,null,null,null,null,null,null,null,null,null,null,null,null,0,{"$f":"+BA22*5","v":0},{"$error":"#DIV/0!"}]
["Calidad"]
["Calidad de la actividad (como le pareció la actividad realizada):",1,null,null,null,null,null,null,null,null,null,null,null,null,null,null,null,null,null,null,null,null,null,null,null,null,null,null,null,null,null,null,null,null,null,null,null,null,null,null,null,null,null,null,null,null,null,null,null,null,null,null,0,{"$f":"+BA24*1","v":0},{"$error":"#DIV/0!"},{"$f":"SUM(BC24:BC28)","v":{"$error":"#DIV/0!"}},{"$f":"SUM(BB24:BB28)","v":0},{"$f":"IF(BD24>100%,\"Verifique  diligenciamiento\",IF(BD24<100%,\"falta una respuesta\",\"ok\"))","v":{"$error":"#DIV/0!"}}]
[null,2,null,null,null,null,null,null,null,null,null,null,null,null,null,null,null,null,null,null,null,null,null,null,null,null,null,null,null,null,null,null,null,null,null,null,null,null,null,null,null,null,null,null,null,null,null,null,null,null,null,null,0,{"$f":"+BA25*2","v":0},{"$error":"#DIV/0!"}]
[null,3,null,null,null,null,null,null,null,null,null,null,null,null,null,null,null,null,null,null,null,null,null,null,null,null,null,null,null,null,null,null,null,null,null,null,null,null,null,null,null,null,null,null,null,null,null,null,null,null,null,null,0,{"$f":"+BA26*3","v":0},{"$error":"#DIV/0!"}]
[null,4,null,null,null,null,null,null,null,null,null,null,null,null,null,null,null,null,null,null,null,null,null,null,null,null,null,null,null,null,null,null,null,null,null,null,null,null,null,null,null,null,null,null,null,null,null,null,null,null,null,null,0,{"$f":"+BA27*4","v":0},{"$error":"#DIV/0!"}]
[null,5,null,null,null,null,null,null,null,null,null,null,null,null,null,null,null,null,null,null,null,null,null,null,null,null,null,null,null,null,null,null,null,null,null,null,null,null,null,null,null,null,null,null,null,null,null,null,null,null,null,null,0,{"$f":"+BA28*5","v":0},{"$error":"#DIV/0!"}]
["Considera que la actividad realizada cumplió con sus expectativas:",1,null,null,null,null,null,null,null,null,null,null,null,null,null,null,null,null,null,null,null,null,null,null,null,null,null,null,null,null,null,null,null,null,null,null,null,null,null,null,null,null,null,null,null,null,null,null,null,null,null,null,0,{"$f":"+BA29*1","v":0},{"$error":"#DIV/0!"},{"$f":"SUM(BC29:BC33)","v":{"$error":"#DIV/0!"}},{"$f":"SUM(BB29:BB33)","v":0},{"$f":"IF(BD29>100%,\"Verifique  diligenciamiento\",IF(BD29<100%,\"falta una respuesta\",\"ok\"))","v":{"$error":"#DIV/0!"}}]
[null,2,null,null,null,null,null,null,null,null,null,null,null,null,null,null,null,null,null,null,null,null,null,null,null,null,null,null,null,null,null,null,null,null,null,null,null,null,null,null,null,null,null,null,null,null,null,null,null,null,null,null,0,{"$f":"+BA30*2","v":0},{"$error":"#DIV/0!"}]
[null,3,null,null,null,null,null,null,null,null,null,null,null,null,null,null,null,null,null,null,null,null,null,null,null,null,null,null,null,null,null,null,null,null,null,null,null,null,null,null,null,null,null,null,null,null,null,null,null,null,null,null,0,{"$f":"+BA31*3","v":0},{"$error":"#DIV/0!"}]
[null,4,null,null,null,null,null,null,null,null,null,null,null,null,null,null,null,null,null,null,null,null,null,null,null,null,null,null,null,null,null,null,null,null,null,null,null,null,null,null,null,null,null,null,null,null,null,null,null,null,null,null,0,{"$f":"+BA32*4","v":0},{"$error":"#DIV/0!"}]
[null,5,null,null,null,null,null,null,null,null,null,null,null,null,null,null,null,null,null,null,null,null,null,null,null,null,null,null,null,null,null,null,null,null,null,null,null,null,null,null,null,null,null,null,null,null,null,null,null,null,null,null,0,{"$f":"+BA33*5","v":0},{"$error":"#DIV/0!"}]
["La actividad fue de su interés:",1,null,null,null,null,null,null,null,null,null,null,null,null,null,null,null,null,null,null,null,null,null,null,null,null,null,null,null,null,null,null,null,null,null,null,null,null,null,null,null,null,null,null,null,null,null,null,null,null,null,null,0,{"$f":"+BA34*1","v":0},{"$error":"#DIV/0!"},{"$f":"SUM(BC34:BC38)","v":{"$error":"#DIV/0!"}},{"$f":"SUM(BB34:BB38)","v":0},{"$f":"IF(BD34>100%,\"Verifique  diligenciamiento\",IF(BD34<100%,\"falta una respuesta\",\"ok\"))","v":{"$error":"#DIV/0!"}}]
[null,2,null,null,null,null,null,null,null,null,null,null,null,null,null,null,null,null,null,null,null,null,null,null,null,null,null,null,null,null,null,null,null,null,null,null,null,null,null,null,null,null,null,null,null,null,null,null,null,null,null,null,0,{"$f":"+BA35*2","v":0},{"$error":"#DIV/0!"}]
[null,3,null,null,null,null,null,null,null,null,null,null,null,null,null,null,null,null,null,null,null,null,null,null,null,null,null,null,null,null,null,null,null,null,null,null,null,null,null,null,null,null,null,null,null,null,null,null,null,null,null,null,0,{"$f":"+BA36*3","v":0},{"$error":"#DIV/0!"}]
[null,4,null,null,null,null,null,null,null,null,null,null,null,null,null,null,null,null,null,null,null,null,null,null,null,null,null,null,null,null,null,null,null,null,null,null,null,null,null,null,null,null,null,null,null,null,null,null,null,null,null,null,0,{"$f":"+BA37*4","v":0},{"$error":"#DIV/0!"}]
[null,5,null,null,null,null,null,null,null,null,null,null,null,null,null,null,null,null,null,null,null,null,null,null,null,null,null,null,null,null,null,null,null,null,null,null,null,null,null,null,null,null,null,null,null,null,null,null,null,null,null,null,0,{"$f":"+BA38*5","v":0},{"$error":"#DIV/0!"}]
["Organización "]
["Se le informó a tiempo de la actividad (convocatoria):",1,null,null,null,null,null,null,null,null,null,null,null,null,null,null,null,null,null,null,null,null,null,null,null,null,null,null,null,null,null,null,null,null,null,null,null,null,null,null,null,null,null,null,null,null,null,null,null,null,null,null,{"$f":"COUNTA(C40:AZ40)","v":0},{"$f":"+BA40*1","v":0},{"$f":"+BA40/$B$10","v":{"$error":"#DIV/0!"}},{"$f":"SUM(BC40:BC44)","v":{"$error":"#DIV/0!"}},{"$f":"SUM(BB40:BB44)","v":0},{"$f":"IF(BD40>100%,\"Verifique  diligenciamiento\",IF(BD40<100%,\"falta una respuesta\",\"ok\"))","v":{"$error":"#DIV/0!"}}]
[null,2,null,null,null,null,null,null,null,null,null,null,null,null,null,null,null,null,null,null,null,null,null,null,null,null,null,null,null,null,null,null,null,null,null,null,null,null,null,null,null,null,null,null,null,null,null,null,null,null,null,null,0,{"$f":"+BA41*2","v":0},{"$error":"#DIV/0!"}]
[null,3,null,null,null,null,null,null,null,null,null,null,null,null,null,null,null,null,null,null,null,null,null,null,null,null,null,null,null,null,null,null,null,null,null,null,null,null,null,null,null,null,null,null,null,null,null,null,null,null,null,null,0,{"$f":"+BA42*3","v":0},{"$error":"#DIV/0!"}]
[null,4,null,null,null,null,null,null,null,null,null,null,null,null,null,null,null,null,null,null,null,null,null,null,null,null,null,null,null,null,null,null,null,null,null,null,null,null,null,null,null,null,null,null,null,null,null,null,null,null,null,null,0,{"$f":"+BA43*4","v":0},{"$error":"#DIV/0!"}]
[null,5,null,null,null,null,null,null,null,null,null,null,null,null,null,null,null,null,null,null,null,null,null,null,null,null,null,null,null,null,null,null,null,null,null,null,null,null,null,null,null,null,null,null,null,null,null,null,null,null,null,null,0,{"$f":"+BA44*5","v":0},{"$error":"#DIV/0!"}]
["Cumplimiento con el horario establecido de la actividad (inicio de la actividad):",1,null,null,null,null,null,null,null,null,null,null,null,null,null,null,null,null,null,null,null,null,null,null,null,null,null,null,null,null,null,null,null,null,null,null,null,null,null,null,null,null,null,null,null,null,null,null,null,null,null,null,{"$f":"COUNTA(C45:AZ45)","v":0},{"$f":"+BA45*1","v":0},{"$f":"+BA45/$B$10","v":{"$error":"#DIV/0!"}},{"$f":"SUM(BC45:BC49)","v":{"$error":"#DIV/0!"}},{"$f":"SUM(BB45:BB49)","v":0},{"$f":"IF(BD45>100%,\"Verifique  diligenciamiento\",IF(BD45<100%,\"falta una respuesta\",\"ok\"))","v":{"$error":"#DIV/0!"}}]
[null,2,null,null,null,null,null,null,null,null,null,null,null,null,null,null,null,null,null,null,null,null,null,null,null,null,null,null,null,null,null,null,null,null,null,null,null,null,null,null,null,null,null,null,null,null,null,null,null,null,null,null,0,{"$f":"+BA46*2","v":0},{"$error":"#DIV/0!"}]
[null,3,null,null,null,null,null,null,null,null,null,null,null,null,null,null,null,null,null,null,null,null,null,null,null,null,null,null,null,null,null,null,null,null,null,null,null,null,null,null,null,null,null,null,null,null,null,null,null,null,null,null,0,{"$f":"+BA47*3","v":0},{"$error":"#DIV/0!"}]
[null,4,null,null,null,null,null,null,null,null,null,null,null,null,null,null,null,null,null,null,null,null,null,null,null,null,null,null,null,null,null,null,null,null,null,null,null,null,null,null,null,null,null,null,null,null,null,null,null,null,null,null,0,{"$f":"+BA48*4","v":0},{"$error":"#DIV/0!"}]
[null,5,null,null,null,null,null,null,null,null,null,null,null,null,null,null,null,null,null,null,null,null,null,null,null,null,null,null,null,null,null,null,null,null,null,null,null,null,null,null,null,null,null,null,null,null,null,null,null,null,null,null,0,{"$f":"+BA49*5","v":0},{"$error":"#DIV/0!"}]
["Organización de la actividad:",1,null,null,null,null,null,null,null,null,null,null,null,null,null,null,null,null,null,null,null,null,null,null,null,null,null,null,null,null,null,null,null,null,null,null,null,null,null,null,null,null,null,null,null,null,null,null,null,null,null,null,{"$f":"COUNTA(C50:AZ50)","v":0},{"$f":"+BA50*1","v":0},{"$error":"#DIV/0!"},{"$f":"SUM(BC50:BC54)","v":{"$error":"#DIV/0!"}},{"$f":"SUM(BB50:BB54)","v":0},{"$error":"#DIV/0!"}]
[null,2,null,null,null,null,null,null,null,null,null,null,null,null,null,null,null,null,null,null,null,null,null,null,null,null,null,null,null,null,null,null,null,null,null,null,null,null,null,null,null,null,null,null,null,null,null,null,null,null,null,null,0,{"$f":"+BA51*2","v":0},{"$error":"#DIV/0!"}]
[null,3,null,null,null,null,null,null,null,null,null,null,null,null,null,null,null,null,null,null,null,null,null,null,null,null,null,null,null,null,null,null,null,null,null,null,null,null,null,null,null,null,null,null,null,null,null,null,null,null,null,null,0,{"$f":"+BA52*3","v":0},{"$error":"#DIV/0!"}]
[null,4,null,null,null,null,null,null,null,null,null,null,null,null,null,null,null,null,null,null,null,null,null,null,null,null,null,null,null,null,null,null,null,null,null,null,null,null,null,null,null,null,null,null,null,null,null,null,null,null,null,null,0,{"$f":"+BA53*4","v":0},{"$error":"#DIV/0!"}]
[null,5,null,null,null,null,null,null,null,null,null,null,null,null,null,null,null,null,null,null,null,null,null,null,null,null,null,null,null,null,null,null,null,null,null,null,null,null,null,null,null,null,null,null,null,null,null,null,null,null,null,null,0,{"$f":"+BA54*5","v":0},{"$error":"#DIV/0!"}]
["Coordinador del Evento "]
["Habilidad en la prestación del servicio:",1,null,null,null,null,null,null,null,null,null,null,null,null,null,null,null,null,null,null,null,null,null,null,null,null,null,null,null,null,null,null,null,null,null,null,null,null,null,null,null,null,null,null,null,null,null,null,null,null,null,null,{"$f":"COUNTA(C56:AZ56)","v":0},{"$f":"+BA56*1","v":0},{"$f":"+BA56/$B$10","v":{"$error":"#DIV/0!"}},{"$f":"SUM(BC56:BC60)","v":{"$error":"#DIV/0!"}},{"$f":"SUM(BB56:BB60)","v":0},{"$f":"IF(BD56>100%,\"Verifique  diligenciamiento\",IF(BD56<100%,\"falta una respuesta\",\"ok\"))","v":{"$error":"#DIV/0!"}}]
[null,2,null,null,null,null,null,null,null,null,null,null,null,null,null,null,null,null,null,null,null,null,null,null,null,null,null,null,null,null,null,null,null,null,null,null,null,null,null,null,null,null,null,null,null,null,null,null,null,null,null,null,{"$f":"COUNTA(C57:AZ57)","v":0},{"$f":"+BA57*2","v":0},{"$error":"#DIV/0!"}]
[null,3,null,null,null,null,null,null,null,null,null,null,null,null,null,null,null,null,null,null,null,null,null,null,null,null,null,null,null,null,null,null,null,null,null,null,null,null,null,null,null,null,null,null,null,null,null,null,null,null,null,null,0,{"$f":"+BA58*3","v":0},{"$error":"#DIV/0!"}]
[null,4,null,null,null,null,null,null,null,null,null,null,null,null,null,null,null,null,null,null,null,null,null,null,null,null,null,null,null,null,null,null,null,null,null,null,null,null,null,null,null,null,null,null,null,null,null,null,null,null,null,null,0,{"$f":"+BA59*4","v":0},{"$error":"#DIV/0!"}]
[null,5,null,null,null,null,null,null,null,null,null,null,null,null,null,null,null,null,null,null,null,null,null,null,null,null,null,null,null,null,null,null,null,null,null,null,null,null,null,null,null,null,null,null,null,null,null,null,null,null,null,null,0,{"$f":"+BA60*5","v":0},{"$error":"#DIV/0!"}]
["Capacidad para dar soluciones y alternativas:",1,null,null,null,null,null,null,null,null,null,null,null,null,null,null,null,null,null,null,null,null,null,null,null,null,null,null,null,null,null,null,null,null,null,null,null,null,null,null,null,null,null,null,null,null,null,null,null,null,null,null,0,{"$f":"+BA61*1","v":0},{"$error":"#DIV/0!"},{"$f":"SUM(BC61:BC65)","v":{"$error":"#DIV/0!"}},{"$f":"SUM(BB61:BB65)","v":0},{"$error":"#DIV/0!"}]
[null,2,null,null,null,null,null,null,null,null,null,null,null,null,null,null,null,null,null,null,null,null,null,null,null,null,null,null,null,null,null,null,null,null,null,null,null,null,null,null,null,null,null,null,null,null,null,null,null,null,null,null,0,{"$f":"+BA62*2","v":0},{"$error":"#DIV/0!"}]
[null,3,null,null,null,null,null,null,null,null,null,null,null,null,null,null,null,null,null,null,null,null,null,null,null,null,null,null,null,null,null,null,null,null,null,null,null,null,null,null,null,null,null,null,null,null,null,null,null,null,null,null,0,{"$f":"+BA63*3","v":0},{"$error":"#DIV/0!"}]
[null,4,null,null,null,null,null,null,null,null,null,null,null,null,null,null,null,null,null,null,null,null,null,null,null,null,null,null,null,null,null,null,null,null,null,null,null,null,null,null,null,null,null,null,null,null,null,null,null,null,null,null,0,{"$f":"+BA64*4","v":0},{"$error":"#DIV/0!"}]
[null,5,null,null,null,null,null,null,null,null,null,null,null,null,null,null,null,null,null,null,null,null,null,null,null,null,null,null,null,null,null,null,null,null,null,null,null,null,null,null,null,null,null,null,null,null,null,null,null,null,null,null,0,{"$f":"+BA65*5","v":0},{"$error":"#DIV/0!"}]
["Brigadistas (Si aplica)"]
["Habilidad en la prestación del servicio:",1,null,null,null,null,null,null,null,null,null,null,null,null,null,null,null,null,null,null,null,null,null,null,null,null,null,null,null,null,null,null,null,null,null,null,null,null,null,null,null,null,null,null,null,null,null,null,null,null,null,null,{"$f":"COUNTA(C67:AZ67)","v":0},{"$f":"+BA67*1","v":0},{"$f":"+BA67/$B$10","v":{"$error":"#DIV/0!"}},{"$f":"SUM(BC67:BC71)","v":{"$error":"#DIV/0!"}},{"$f":"SUM(BB67:BB71)","v":0},{"$f":"IF(BD67>100%,\"Verifique  diligenciamiento\",IF(BD67<100%,\"falta una respuesta\",\"ok\"))","v":{"$error":"#DIV/0!"}}]
[null,2,null,null,null,null,null,null,null,null,null,null,null,null,null,null,null,null,null,null,null,null,null,null,null,null,null,null,null,null,null,null,null,null,null,null,null,null,null,null,null,null,null,null,null,null,null,null,null,null,null,null,0,{"$f":"+BA68*2","v":0},{"$error":"#DIV/0!"}]
[null,3,null,null,null,null,null,null,null,null,null,null,null,null,null,null,null,null,null,null,null,null,null,null,null,null,null,null,null,null,null,null,null,null,null,null,null,null,null,null,null,null,null,null,null,null,null,null,null,null,null,null,0,{"$f":"+BA69*3","v":0},{"$error":"#DIV/0!"}]
[null,4,null,null,null,null,null,null,null,null,null,null,null,null,null,null,null,null,null,null,null,null,null,null,null,null,null,null,null,null,null,null,null,null,null,null,null,null,null,null,null,null,null,null,null,null,null,null,null,null,null,null,0,{"$f":"+BA70*4","v":0},{"$error":"#DIV/0!"}]
[null,5,null,null,null,null,null,null,null,null,null,null,null,null,null,null,null,null,null,null,null,null,null,null,null,null,null,null,null,null,null,null,null,null,null,null,null,null,null,null,null,null,null,null,null,null,null,null,null,null,null,null,0,{"$f":"+BA71*5","v":0},{"$error":"#DIV/0!"}]
["Conocimientos al momento de prestar el servicio:",1,null,null,null,null,null,null,null,null,null,null,null,null,null,null,null,null,null,null,null,null,null,null,null,null,null,null,null,null,null,null,null,null,null,null,null,null,null,null,null,null,null,null,null,null,null,null,null,null,null,null,0,{"$f":"+BA72*1","v":0},{"$error":"#DIV/0!"},{"$f":"SUM(BC72:BC76)","v":{"$error":"#DIV/0!"}},{"$f":"SUM(BB72:BB76)","v":0},{"$error":"#DIV/0!"}]
[null,2,null,null,null,null,null,null,null,null,null,null,null,null,null,null,null,null,null,null,null,null,null,null,null,null,null,null,null,null,null,null,null,null,null,null,null,null,null,null,null,null,null,null,null,null,null,null,null,null,null,null,0,{"$f":"+BA73*2","v":0},{"$error":"#DIV/0!"}]
[null,3,null,null,null,null,null,null,null,null,null,null,null,null,null,null,null,null,null,null,null,null,null,null,null,null,null,null,null,null,null,null,null,null,null,null,null,null,null,null,null,null,null,null,null,null,null,null,null,null,null,null,0,{"$f":"+BA74*3","v":0},{"$error":"#DIV/0!"}]
[null,4,null,null,null,null,null,null,null,null,null,null,null,null,null,null,null,null,null,null,null,null,null,null,null,null,null,null,null,null,null,null,null,null,null,null,null,null,null,null,null,null,null,null,null,null,null,null,null,null,null,null,0,{"$f":"+BA75*4","v":0},{"$error":"#DIV/0!"}]
[null,5,null,null,null,null,null,null,null,null,null,null,null,null,null,null,null,null,null,null,null,null,null,null,null,null,null,null,null,null,null,null,null,null,null,null,null,null,null,null,null,null,null,null,null,null,null,null,null,null,null,null,0,{"$f":"+BA76*5","v":0},{"$error":"#DIV/0!"}]
["Jueces (Si aplica)"]
["Califique el arbitraje prestado por el juez en la actividad deportiva:",1,null,null,null,null,null,null,null,null,null,null,null,null,null,null,null,null,null,null,null,null,null,null,null,null,null,null,null,null,null,null,null,null,null,null,null,null,null,null,null,null,null,null,null,null,null,null,null,null,null,null,{"$f":"COUNTA(C78:AZ78)","v":0},{"$f":"+BA78*1","v":0},{"$f":"+BA78/$B$10","v":{"$error":"#DIV/0!"}},{"$f":"SUM(BC78:BC82)","v":{"$error":"#DIV/0!"}},{"$f":"SUM(BB78:BB82)","v":0},{"$f":"IF(BD78>100%,\"Verifique  diligenciamiento\",IF(BD78<100%,\"falta una respuesta\",\"ok\"))","v":{"$error":"#DIV/0!"}}]
[null,2,null,null,null,null,null,null,null,null,null,null,null,null,null,null,null,null,null,null,null,null,null,null,null,null,null,null,null,null,null,null,null,null,null,null,null,null,null,null,null,null,null,null,null,null,null,null,null,null,null,null,0,{"$f":"+BA79*2","v":0},{"$error":"#DIV/0!"}]
[null,3,null,null,null,null,null,null,null,null,null,null,null,null,null,null,null,null,null,null,null,null,null,null,null,null,null,null,null,null,null,null,null,null,null,null,null,null,null,null,null,null,null,null,null,null,null,null,null,null,null,null,0,{"$f":"+BA80*3","v":0},{"$error":"#DIV/0!"}]
[null,4,null,null,null,null,null,null,null,null,null,null,null,null,null,null,null,null,null,null,null,null,null,null,null,null,null,null,null,null,null,null,null,null,null,null,null,null,null,null,null,null,null,null,null,null,null,null,null,null,null,null,{"$f":"COUNTA(C81:AZ81)","v":0},{"$f":"+BA81*4","v":0},{"$error":"#DIV/0!"}]
[null,5,null,null,null,null,null,null,null,null,null,null,null,null,null,null,null,null,null,null,null,null,null,null,null,null,null,null,null,null,null,null,null,null,null,null,null,null,null,null,null,null,null,null,null,null,null,null,null,null,null,null,0,{"$f":"+BA82*5","v":0},{"$error":"#DIV/0!"}]
["Instalaciones, Escenografias y Materiales"]
["Estado de las instalaciones:",1,null,null,null,null,null,null,null,null,null,null,null,null,null,null,null,null,null,null,null,null,null,null,null,null,null,null,null,null,null,null,null,null,null,null,null,null,null,null,null,null,null,null,null,null,null,null,null,null,null,null,{"$f":"COUNTA(C84:AZ84)","v":0},{"$f":"+BA84*1","v":0},{"$f":"+BA84/$B$10","v":{"$error":"#DIV/0!"}},{"$f":"SUM(BC84:BC88)","v":{"$error":"#DIV/0!"}},{"$f":"SUM(BB84:BB88)","v":0},{"$f":"IF(BD84>100%,\"Verifique  diligenciamiento\",IF(BD84<100%,\"falta una respuesta\",\"ok\"))","v":{"$error":"#DIV/0!"}}]
[null,2,null,null,null,null,null,null,null,null,null,null,null,null,null,null,null,null,null,null,null,null,null,null,null,null,null,null,null,null,null,null,null,null,null,null,null,null,null,null,null,null,null,null,null,null,null,null,null,null,null,null,0,{"$f":"+BA85*2","v":0},{"$error":"#DIV/0!"}]
[null,3,null,null,null,null,null,null,null,null,null,null,null,null,null,null,null,null,null,null,null,null,null,null,null,null,null,null,null,null,null,null,null,null,null,null,null,null,null,null,null,null,null,null,null,null,null,null,null,null,null,null,0,{"$f":"+BA86*3","v":0},{"$error":"#DIV/0!"}]
[null,4,null,null,null,null,null,null,null,null,null,null,null,null,null,null,null,null,null,null,null,null,null,null,null,null,null,null,null,null,null,null,null,null,null,null,null,null,null,null,null,null,null,null,null,null,null,null,null,null,null,null,0,{"$f":"+BA87*4","v":0},{"$error":"#DIV/0!"}]
[null,5,null,null,null,null,null,null,null,null,null,null,null,null,null,null,null,null,null,null,null,null,null,null,null,null,null,null,null,null,null,null,null,null,null,null,null,null,null,null,null,null,null,null,null,null,null,null,null,null,null,null,0,{"$f":"+BA88*5","v":0},{"$error":"#DIV/0!"}]
["Ubicación de las instalaciones:",1,null,null,null,null,null,null,null,null,null,null,null,null,null,null,null,null,null,null,null,null,null,null,null,null,null,null,null,null,null,null,null,null,null,null,null,null,null,null,null,null,null,null,null,null,null,null,null,null,null,null,0,{"$f":"+BA89*1","v":0},{"$error":"#DIV/0!"},{"$f":"SUM(BC89:BC93)","v":{"$error":"#DIV/0!"}},{"$f":"SUM(BB89:BB93)","v":0},{"$f":"IF(BD89>100%,\"Verifique  diligenciamiento\",IF(BD89<100%,\"falta una respuesta\",\"ok\"))","v":{"$error":"#DIV/0!"}}]
[null,2,null,null,null,null,null,null,null,null,null,null,null,null,null,null,null,null,null,null,null,null,null,null,null,null,null,null,null,null,null,null,null,null,null,null,null,null,null,null,null,null,null,null,null,null,null,null,null,null,null,null,0,{"$f":"+BA90*2","v":0},{"$error":"#DIV/0!"}]
[null,3,null,null,null,null,null,null,null,null,null,null,null,null,null,null,null,null,null,null,null,null,null,null,null,null,null,null,null,null,null,null,null,null,null,null,null,null,null,null,null,null,null,null,null,null,null,null,null,null,null,null,0,{"$f":"+BA91*3","v":0},{"$error":"#DIV/0!"}]
[null,4,null,null,null,null,null,null,null,null,null,null,null,null,null,null,null,null,null,null,null,null,null,null,null,null,null,null,null,null,null,null,null,null,null,null,null,null,null,null,null,null,null,null,null,null,null,null,null,null,null,null,0,{"$f":"+BA92*4","v":0},{"$error":"#DIV/0!"}]
[null,5,null,null,null,null,null,null,null,null,null,null,null,null,null,null,null,null,null,null,null,null,null,null,null,null,null,null,null,null,null,null,null,null,null,null,null,null,null,null,null,null,null,null,null,null,null,null,null,null,null,null,0,{"$f":"+BA93*5","v":0},{"$error":"#DIV/0!"}]
["Estado de los materiales recreativos y escenografías:",1,null,null,null,null,null,null,null,null,null,null,null,null,null,null,null,null,null,null,null,null,null,null,null,null,null,null,null,null,null,null,null,null,null,null,null,null,null,null,null,null,null,null,null,null,null,null,null,null,null,null,0,{"$f":"+BA94*1","v":0},{"$error":"#DIV/0!"},{"$f":"SUM(BC94:BC98)","v":{"$error":"#DIV/0!"}},{"$f":"SUM(BB94:BB98)","v":0},{"$error":"#DIV/0!"}]
[null,2,null,null,null,null,null,null,null,null,null,null,null,null,null,null,null,null,null,null,null,null,null,null,null,null,null,null,null,null,null,null,null,null,null,null,null,null,null,null,null,null,null,null,null,null,null,null,null,null,null,null,0,{"$f":"+BA95*2","v":0},{"$error":"#DIV/0!"}]
[null,3,null,null,null,null,null,null,null,null,null,null,null,null,null,null,null,null,null,null,null,null,null,null,null,null,null,null,null,null,null,null,null,null,null,null,null,null,null,null,null,null,null,null,null,null,null,null,null,null,null,null,0,{"$f":"+BA96*3","v":0},{"$error":"#DIV/0!"}]
[null,4,null,null,null,null,null,null,null,null,null,null,null,null,null,null,null,null,null,null,null,null,null,null,null,null,null,null,null,null,null,null,null,null,null,null,null,null,null,null,null,null,null,null,null,null,null,null,null,null,null,null,0,{"$f":"+BA97*4","v":0},{"$error":"#DIV/0!"}]
[null,5,null,null,null,null,null,null,null,null,null,null,null,null,null,null,null,null,null,null,null,null,null,null,null,null,null,null,null,null,null,null,null,null,null,null,null,null,null,null,null,null,null,null,null,null,null,null,null,null,null,null,0,{"$f":"+BA98*5","v":0},{"$error":"#DIV/0!"}]
["Adecuación y ambientación del lugar:",1,null,null,null,null,null,null,null,null,null,null,null,null,null,null,null,null,null,null,null,null,null,null,null,null,null,null,null,null,null,null,null,null,null,null,null,null,null,null,null,null,null,null,null,null,null,null,null,null,null,null,0,{"$f":"+BA99*1","v":0},{"$error":"#DIV/0!"},{"$f":"SUM(BC99:BC103)","v":{"$error":"#DIV/0!"}},{"$f":"SUM(BB99:BB103)","v":0},{"$error":"#DIV/0!"}]
[null,2,null,null,null,null,null,null,null,null,null,null,null,null,null,null,null,null,null,null,null,null,null,null,null,null,null,null,null,null,null,null,null,null,null,null,null,null,null,null,null,null,null,null,null,null,null,null,null,null,null,null,0,{"$f":"+BA100*2","v":0},{"$error":"#DIV/0!"}]
[null,3,null,null,null,null,null,null,null,null,null,null,null,null,null,null,null,null,null,null,null,null,null,null,null,null,null,null,null,null,null,null,null,null,null,null,null,null,null,null,null,null,null,null,null,null,null,null,null,null,null,null,0,{"$f":"+BA101*3","v":0},{"$error":"#DIV/0!"}]
[null,4,null,null,null,null,null,null,null,null,null,null,null,null,null,null,null,null,null,null,null,null,null,null,null,null,null,null,null,null,null,null,null,null,null,null,null,null,null,null,null,null,null,null,null,null,null,null,null,null,null,null,0,{"$f":"+BA102*4","v":0},{"$error":"#DIV/0!"}]
[null,5,null,null,null,null,null,null,null,null,null,null,null,null,null,null,null,null,null,null,null,null,null,null,null,null,null,null,null,null,null,null,null,null,null,null,null,null,null,null,null,null,null,null,null,null,null,null,null,null,null,null,0,{"$f":"+BA103*5","v":0},{"$error":"#DIV/0!"}]
["Aseo del lugar:",1,null,null,null,null,null,null,null,null,null,null,null,null,null,null,null,null,null,null,null,null,null,null,null,null,null,null,null,null,null,null,null,null,null,null,null,null,null,null,null,null,null,null,null,null,null,null,null,null,null,null,0,{"$f":"+BA104*1","v":0},{"$error":"#DIV/0!"},{"$f":"SUM(BC104:BC108)","v":{"$error":"#DIV/0!"}},{"$f":"SUM(BB104:BB108)","v":0},{"$error":"#DIV/0!"}]
[null,2,null,null,null,null,null,null,null,null,null,null,null,null,null,null,null,null,null,null,null,null,null,null,null,null,null,null,null,null,null,null,null,null,null,null,null,null,null,null,null,null,null,null,null,null,null,null,null,null,null,null,0,{"$f":"+BA105*2","v":0},{"$error":"#DIV/0!"}]
[null,3,null,null,null,null,null,null,null,null,null,null,null,null,null,null,null,null,null,null,null,null,null,null,null,null,null,null,null,null,null,null,null,null,null,null,null,null,null,null,null,null,null,null,null,null,null,null,null,null,null,null,0,{"$f":"+BA106*3","v":0},{"$error":"#DIV/0!"}]
[null,4,null,null,null,null,null,null,null,null,null,null,null,null,null,null,null,null,null,null,null,null,null,null,null,null,null,null,null,null,null,null,null,null,null,null,null,null,null,null,null,null,null,null,null,null,null,null,null,null,null,null,0,{"$f":"+BA107*4","v":0},{"$error":"#DIV/0!"}]
[null,5,null,null,null,null,null,null,null,null,null,null,null,null,null,null,null,null,null,null,null,null,null,null,null,null,null,null,null,null,null,null,null,null,null,null,null,null,null,null,null,null,null,null,null,null,null,null,null,null,null,null,0,{"$f":"+BA108*5","v":0},{"$error":"#DIV/0!"}]
["Comodidad de las instalaciones:",1,null,null,null,null,null,null,null,null,null,null,null,null,null,null,null,null,null,null,null,null,null,null,null,null,null,null,null,null,null,null,null,null,null,null,null,null,null,null,null,null,null,null,null,null,null,null,null,null,null,null,0,{"$f":"+BA109*1","v":0},{"$error":"#DIV/0!"},{"$f":"SUM(BC109:BC113)","v":{"$error":"#DIV/0!"}},{"$f":"SUM(BB109:BB113)","v":0},{"$error":"#DIV/0!"}]
[null,2,null,null,null,null,null,null,null,null,null,null,null,null,null,null,null,null,null,null,null,null,null,null,null,null,null,null,null,null,null,null,null,null,null,null,null,null,null,null,null,null,null,null,null,null,null,null,null,null,null,null,0,{"$f":"+BA110*2","v":0},{"$error":"#DIV/0!"}]
[null,3,null,null,null,null,null,null,null,null,null,null,null,null,null,null,null,null,null,null,null,null,null,null,null,null,null,null,null,null,null,null,null,null,null,null,null,null,null,null,null,null,null,null,null,null,null,null,null,null,null,null,0,{"$f":"+BA111*3","v":0},{"$error":"#DIV/0!"}]
[null,4,null,null,null,null,null,null,null,null,null,null,null,null,null,null,null,null,null,null,null,null,null,null,null,null,null,null,null,null,null,null,null,null,null,null,null,null,null,null,null,null,null,null,null,null,null,null,null,null,null,null,0,{"$f":"+BA112*4","v":0},{"$error":"#DIV/0!"}]
[null,5,null,null,null,null,null,null,null,null,null,null,null,null,null,null,null,null,null,null,null,null,null,null,null,null,null,null,null,null,null,null,null,null,null,null,null,null,null,null,null,null,null,null,null,null,null,null,null,null,null,null,0,{"$f":"+BA113*5","v":0},{"$error":"#DIV/0!"}]
[" Servicios de Alimentos y Bebidas (si aplica)"]
["Presentación de los alimentos y bebidas:",1,null,null,null,null,null,null,null,null,null,null,null,null,null,null,null,null,null,null,null,null,null,null,null,null,null,null,null,null,null,null,null,null,null,null,null,null,null,null,null,null,null,null,null,null,null,null,null,null,null,null,{"$f":"COUNTA(C115:AZ115)","v":0},{"$f":"+BA115*1","v":0},{"$f":"+BA115/$B$10","v":{"$error":"#DIV/0!"}},{"$f":"SUM(BC115:BC119)","v":{"$error":"#DIV/0!"}},{"$f":"SUM(BB115:BB119)","v":0},{"$f":"IF(BD115>100%,\"Verifique  diligenciamiento\",IF(BD115<100%,\"falta una respuesta\",\"ok\"))","v":{"$error":"#DIV/0!"}}]
[null,2,null,null,null,null,null,null,null,null,null,null,null,null,null,null,null,null,null,null,null,null,null,null,null,null,null,null,null,null,null,null,null,null,null,null,null,null,null,null,null,null,null,null,null,null,null,null,null,null,null,null,0,{"$f":"+BA116*2","v":0},{"$error":"#DIV/0!"}]
[null,3,null,null,null,null,null,null,null,null,null,null,null,null,null,null,null,null,null,null,null,null,null,null,null,null,null,null,null,null,null,null,null,null,null,null,null,null,null,null,null,null,null,null,null,null,null,null,null,null,null,null,0,{"$f":"+BA117*3","v":0},{"$error":"#DIV/0!"}]
[null,4,null,null,null,null,null,null,null,null,null,null,null,null,null,null,null,null,null,null,null,null,null,null,null,null,null,null,null,null,null,null,null,null,null,null,null,null,null,null,null,null,null,null,null,null,null,null,null,null,null,null,0,{"$f":"+BA118*4","v":0},{"$error":"#DIV/0!"}]
[null,5,null,null,null,null,null,null,null,null,null,null,null,null,null,null,null,null,null,null,null,null,null,null,null,null,null,null,null,null,null,null,null,null,null,null,null,null,null,null,null,null,null,null,null,null,null,null,null,null,null,null,0,{"$f":"+BA119*5","v":0},{"$error":"#DIV/0!"}]
["Calidad de los productos de los alimentos y bebidas:",1,null,null,null,null,null,null,null,null,null,null,null,null,null,null,null,null,null,null,null,null,null,null,null,null,null,null,null,null,null,null,null,null,null,null,null,null,null,null,null,null,null,null,null,null,null,null,null,null,null,null,0,{"$f":"+BA120*1","v":0},{"$error":"#DIV/0!"},{"$f":"SUM(BC120:BC124)","v":{"$error":"#DIV/0!"}},{"$f":"SUM(BB120:BB124)","v":0},{"$error":"#DIV/0!"}]
[null,2,null,null,null,null,null,null,null,null,null,null,null,null,null,null,null,null,null,null,null,null,null,null,null,null,null,null,null,null,null,null,null,null,null,null,null,null,null,null,null,null,null,null,null,null,null,null,null,null,null,null,0,{"$f":"+BA121*2","v":0},{"$error":"#DIV/0!"}]
[null,3,null,null,null,null,null,null,null,null,null,null,null,null,null,null,null,null,null,null,null,null,null,null,null,null,null,null,null,null,null,null,null,null,null,null,null,null,null,null,null,null,null,null,null,null,null,null,null,null,null,null,0,{"$f":"+BA122*3","v":0},{"$error":"#DIV/0!"}]
[null,4,null,null,null,null,null,null,null,null,null,null,null,null,null,null,null,null,null,null,null,null,null,null,null,null,null,null,null,null,null,null,null,null,null,null,null,null,null,null,null,null,null,null,null,null,null,null,null,null,null,null,0,{"$f":"+BA123*4","v":0},{"$error":"#DIV/0!"}]
[null,5,null,null,null,null,null,null,null,null,null,null,null,null,null,null,null,null,null,null,null,null,null,null,null,null,null,null,null,null,null,null,null,null,null,null,null,null,null,null,null,null,null,null,null,null,null,null,null,null,null,null,0,{"$f":"+BA124*5","v":0},{"$error":"#DIV/0!"}]
["Cumplimiento en la entrega del servicio de alimentos y bebidas:",1,null,null,null,null,null,null,null,null,null,null,null,null,null,null,null,null,null,null,null,null,null,null,null,null,null,null,null,null,null,null,null,null,null,null,null,null,null,null,null,null,null,null,null,null,null,null,null,null,null,null,0,{"$f":"+BA125*1","v":0},{"$error":"#DIV/0!"},{"$f":"SUM(BC125:BC129)","v":{"$error":"#DIV/0!"}},{"$f":"SUM(BB125:BB129)","v":0},{"$error":"#DIV/0!"}]
[null,2,null,null,null,null,null,null,null,null,null,null,null,null,null,null,null,null,null,null,null,null,null,null,null,null,null,null,null,null,null,null,null,null,null,null,null,null,null,null,null,null,null,null,null,null,null,null,null,null,null,null,0,{"$f":"+BA126*2","v":0},{"$error":"#DIV/0!"}]
[null,3,null,null,null,null,null,null,null,null,null,null,null,null,null,null,null,null,null,null,null,null,null,null,null,null,null,null,null,null,null,null,null,null,null,null,null,null,null,null,null,null,null,null,null,null,null,null,null,null,null,null,0,{"$f":"+BA127*3","v":0},{"$error":"#DIV/0!"}]
[null,4,null,null,null,null,null,null,null,null,null,null,null,null,null,null,null,null,null,null,null,null,null,null,null,null,null,null,null,null,null,null,null,null,null,null,null,null,null,null,null,null,null,null,null,null,null,null,null,null,null,null,0,{"$f":"+BA128*4","v":0},{"$error":"#DIV/0!"}]
[null,5,null,null,null,null,null,null,null,null,null,null,null,null,null,null,null,null,null,null,null,null,null,null,null,null,null,null,null,null,null,null,null,null,null,null,null,null,null,null,null,null,null,null,null,null,null,null,null,null,null,null,0,{"$f":"+BA129*5","v":0},{"$error":"#DIV/0!"}]
[" Servicio de Transporte (si aplica)"]
["Cumplimiento con el horario establecido (puntualidad):",1,null,null,null,null,null,null,null,null,null,null,null,null,null,null,null,null,null,null,null,null,null,null,null,null,null,null,null,null,null,null,null,null,null,null,null,null,null,null,null,null,null,null,null,null,null,null,null,null,null,null,{"$f":"COUNTA(C131:AZ131)","v":0},{"$f":"+BA131*1","v":0},{"$f":"+BA131/$B$10","v":{"$error":"#DIV/0!"}},{"$f":"SUM(BC131:BC135)","v":{"$error":"#DIV/0!"}},{"$f":"SUM(BB131:BB135)","v":0},{"$f":"IF(BD131>100%,\"Verifique  diligenciamiento\",IF(BD131<100%,\"falta una respuesta\",\"ok\"))","v":{"$error":"#DIV/0!"}}]
[null,2,null,null,null,null,null,null,null,null,null,null,null,null,null,null,null,null,null,null,null,null,null,null,null,null,null,null,null,null,null,null,null,null,null,null,null,null,null,null,null,null,null,null,null,null,null,null,null,null,null,null,0,{"$f":"+BA132*2","v":0},{"$error":"#DIV/0!"}]
[null,3,null,null,null,null,null,null,null,null,null,null,null,null,null,null,null,null,null,null,null,null,null,null,null,null,null,null,null,null,null,null,null,null,null,null,null,null,null,null,null,null,null,null,null,null,null,null,null,null,null,null,0,{"$f":"+BA133*3","v":0},{"$error":"#DIV/0!"}]
[null,4,null,null,null,null,null,null,null,null,null,null,null,null,null,null,null,null,null,null,null,null,null,null,null,null,null,null,null,null,null,null,null,null,null,null,null,null,null,null,null,null,null,null,null,null,null,null,null,null,null,null,0,{"$f":"+BA134*4","v":0},{"$error":"#DIV/0!"}]
[null,5,null,null,null,null,null,null,null,null,null,null,null,null,null,null,null,null,null,null,null,null,null,null,null,null,null,null,null,null,null,null,null,null,null,null,null,null,null,null,null,null,null,null,null,null,null,null,null,null,null,null,0,{"$f":"+BA135*5","v":0},{"$error":"#DIV/0!"}]
["Aseo del bus:",1,null,null,null,null,null,null,null,null,null,null,null,null,null,null,null,null,null,null,null,null,null,null,null,null,null,null,null,null,null,null,null,null,null,null,null,null,null,null,null,null,null,null,null,null,null,null,null,null,null,null,0,{"$f":"+BA136*1","v":0},{"$error":"#DIV/0!"},{"$f":"SUM(BC136:BC140)","v":{"$error":"#DIV/0!"}},{"$f":"SUM(BB136:BB140)","v":0},{"$error":"#DIV/0!"}]
[null,2,null,null,null,null,null,null,null,null,null,null,null,null,null,null,null,null,null,null,null,null,null,null,null,null,null,null,null,null,null,null,null,null,null,null,null,null,null,null,null,null,null,null,null,null,null,null,null,null,null,null,0,{"$f":"+BA137*2","v":0},{"$error":"#DIV/0!"}]
[null,3,null,null,null,null,null,null,null,null,null,null,null,null,null,null,null,null,null,null,null,null,null,null,null,null,null,null,null,null,null,null,null,null,null,null,null,null,null,null,null,null,null,null,null,null,null,null,null,null,null,null,0,{"$f":"+BA138*3","v":0},{"$error":"#DIV/0!"}]
[null,4,null,null,null,null,null,null,null,null,null,null,null,null,null,null,null,null,null,null,null,null,null,null,null,null,null,null,null,null,null,null,null,null,null,null,null,null,null,null,null,null,null,null,null,null,null,null,null,null,null,null,0,{"$f":"+BA139*4","v":0},{"$error":"#DIV/0!"}]
[null,5,null,null,null,null,null,null,null,null,null,null,null,null,null,null,null,null,null,null,null,null,null,null,null,null,null,null,null,null,null,null,null,null,null,null,null,null,null,null,null,null,null,null,null,null,null,null,null,null,null,null,0,{"$f":"+BA140*5","v":0},{"$error":"#DIV/0!"}]
["El bus se encuentra en buenas condiciones:",1,null,null,null,null,null,null,null,null,null,null,null,null,null,null,null,null,null,null,null,null,null,null,null,null,null,null,null,null,null,null,null,null,null,null,null,null,null,null,null,null,null,null,null,null,null,null,null,null,null,null,0,{"$f":"+BA141*1","v":0},{"$error":"#DIV/0!"},{"$f":"SUM(BC141:BC145)","v":{"$error":"#DIV/0!"}},{"$f":"SUM(BB141:BB145)","v":0},{"$error":"#DIV/0!"}]
[null,2,null,null,null,null,null,null,null,null,null,null,null,null,null,null,null,null,null,null,null,null,null,null,null,null,null,null,null,null,null,null,null,null,null,null,null,null,null,null,null,null,null,null,null,null,null,null,null,null,null,null,0,{"$f":"+BA142*2","v":0},{"$error":"#DIV/0!"}]
[null,3,null,null,null,null,null,null,null,null,null,null,null,null,null,null,null,null,null,null,null,null,null,null,null,null,null,null,null,null,null,null,null,null,null,null,null,null,null,null,null,null,null,null,null,null,null,null,null,null,null,null,0,{"$f":"+BA143*3","v":0},{"$error":"#DIV/0!"}]
[null,4,null,null,null,null,null,null,null,null,null,null,null,null,null,null,null,null,null,null,null,null,null,null,null,null,null,null,null,null,null,null,null,null,null,null,null,null,null,null,null,null,null,null,null,null,null,null,null,null,null,null,0,{"$f":"+BA144*4","v":0},{"$error":"#DIV/0!"}]
[null,5,null,null,null,null,null,null,null,null,null,null,null,null,null,null,null,null,null,null,null,null,null,null,null,null,null,null,null,null,null,null,null,null,null,null,null,null,null,null,null,null,null,null,null,null,null,null,null,null,null,null,0,{"$f":"+BA145*5","v":0},{"$error":"#DIV/0!"}]
["Capacidad del bus / Comodidad del bus:",1,null,null,null,null,null,null,null,null,null,null,null,null,null,null,null,null,null,null,null,null,null,null,null,null,null,null,null,null,null,null,null,null,null,null,null,null,null,null,null,null,null,null,null,null,null,null,null,null,null,null,0,{"$f":"+BA146*1","v":0},{"$error":"#DIV/0!"},{"$f":"SUM(BC146:BC150)","v":{"$error":"#DIV/0!"}},{"$f":"SUM(BB146:BB150)","v":0},{"$error":"#DIV/0!"}]
[null,2,null,null,null,null,null,null,null,null,null,null,null,null,null,null,null,null,null,null,null,null,null,null,null,null,null,null,null,null,null,null,null,null,null,null,null,null,null,null,null,null,null,null,null,null,null,null,null,null,null,null,0,{"$f":"+BA147*2","v":0},{"$error":"#DIV/0!"}]
[null,3,null,null,null,null,null,null,null,null,null,null,null,null,null,null,null,null,null,null,null,null,null,null,null,null,null,null,null,null,null,null,null,null,null,null,null,null,null,null,null,null,null,null,null,null,null,null,null,null,null,null,0,{"$f":"+BA148*3","v":0},{"$error":"#DIV/0!"}]
[null,4,null,null,null,null,null,null,null,null,null,null,null,null,null,null,null,null,null,null,null,null,null,null,null,null,null,null,null,null,null,null,null,null,null,null,null,null,null,null,null,null,null,null,null,null,null,null,null,null,null,null,0,{"$f":"+BA149*4","v":0},{"$error":"#DIV/0!"}]
[null,5,null,null,null,null,null,null,null,null,null,null,null,null,null,null,null,null,null,null,null,null,null,null,null,null,null,null,null,null,null,null,null,null,null,null,null,null,null,null,null,null,null,null,null,null,null,null,null,null,null,null,0,{"$f":"+BA150*5","v":0},{"$error":"#DIV/0!"}]
["Prudencia del conductor para conducir:",1,null,null,null,null,null,null,null,null,null,null,null,null,null,null,null,null,null,null,null,null,null,null,null,null,null,null,null,null,null,null,null,null,null,null,null,null,null,null,null,null,null,null,null,null,null,null,null,null,null,null,0,{"$f":"+BA151*1","v":0},{"$error":"#DIV/0!"},{"$f":"SUM(BC151:BC155)","v":{"$error":"#DIV/0!"}},{"$f":"SUM(BB151:BB155)","v":0},{"$error":"#DIV/0!"}]
[null,2,null,null,null,null,null,null,null,null,null,null,null,null,null,null,null,null,null,null,null,null,null,null,null,null,null,null,null,null,null,null,null,null,null,null,null,null,null,null,null,null,null,null,null,null,null,null,null,null,null,null,0,{"$f":"+BA152*2","v":0},{"$error":"#DIV/0!"}]
[null,3,null,null,null,null,null,null,null,null,null,null,null,null,null,null,null,null,null,null,null,null,null,null,null,null,null,null,null,null,null,null,null,null,null,null,null,null,null,null,null,null,null,null,null,null,null,null,null,null,null,null,0,{"$f":"+BA153*3","v":0},{"$error":"#DIV/0!"}]
[null,4,null,null,null,null,null,null,null,null,null,null,null,null,null,null,null,null,null,null,null,null,null,null,null,null,null,null,null,null,null,null,null,null,null,null,null,null,null,null,null,null,null,null,null,null,null,null,null,null,null,null,0,{"$f":"+BA154*4","v":0},{"$error":"#DIV/0!"}]
[null,5,null,null,null,null,null,null,null,null,null,null,null,null,null,null,null,null,null,null,null,null,null,null,null,null,null,null,null,null,null,null,null,null,null,null,null,null,null,null,null,null,null,null,null,null,null,null,null,null,null,null,0,{"$f":"+BA155*5","v":0},{"$error":"#DIV/0!"}]
["Amabilidad del conductor",1,null,null,null,null,null,null,null,null,null,null,null,null,null,null,null,null,null,null,null,null,null,null,null,null,null,null,null,null,null,null,null,null,null,null,null,null,null,null,null,null,null,null,null,null,null,null,null,null,null,null,{"$f":"COUNTA(C156:AZ156)","v":0},{"$f":"+BA156*1","v":0},{"$f":"+BA156/$B$10","v":{"$error":"#DIV/0!"}},{"$f":"SUM(BC156:BC160)","v":{"$error":"#DIV/0!"}},{"$f":"SUM(BB156:BB160)","v":0},{"$f":"IF(BD156>100%,\"Verifique  diligenciamiento\",IF(BD156<100%,\"falta una respuesta\",\"ok\"))","v":{"$error":"#DIV/0!"}}]
[null,2,null,null,null,null,null,null,null,null,null,null,null,null,null,null,null,null,null,null,null,null,null,null,null,null,null,null,null,null,null,null,null,null,null,null,null,null,null,null,null,null,null,null,null,null,null,null,null,null,null,null,0,{"$f":"+BA157*2","v":0},{"$error":"#DIV/0!"}]
[null,3,null,null,null,null,null,null,null,null,null,null,null,null,null,null,null,null,null,null,null,null,null,null,null,null,null,null,null,null,null,null,null,null,null,null,null,null,null,null,null,null,null,null,null,null,null,null,null,null,null,null,0,{"$f":"+BA158*3","v":0},{"$error":"#DIV/0!"}]
[null,4,null,null,null,null,null,null,null,null,null,null,null,null,null,null,null,null,null,null,null,null,null,null,null,null,null,null,null,null,null,null,null,null,null,null,null,null,null,null,null,null,null,null,null,null,null,null,null,null,null,null,0,{"$f":"+BA159*4","v":0},{"$error":"#DIV/0!"}]
[null,5,null,null,null,null,null,null,null,null,null,null,null,null,null,null,null,null,null,null,null,null,null,null,null,null,null,null,null,null,null,null,null,null,null,null,null,null,null,null,null,null,null,null,null,null,null,null,null,null,null,null,0,{"$f":"+BA160*5","v":0},{"$error":"#DIV/0!"}]
["Seguridad"]
["Seguridad que ofrece el lugar:",1,null,null,null,null,null,null,null,null,null,null,null,null,null,null,null,null,null,null,null,null,null,null,null,null,null,null,null,null,null,null,null,null,null,null,null,null,null,null,null,null,null,null,null,null,null,null,null,null,null,null,{"$f":"COUNTA(C162:AZ162)","v":0},{"$f":"+BA162*1","v":0},{"$f":"+BA162/$B$10","v":{"$error":"#DIV/0!"}},{"$f":"SUM(BC162:BC166)","v":{"$error":"#DIV/0!"}},{"$f":"SUM(BB162:BB166)","v":0},{"$f":"IF(BD162>100%,\"Verifique  diligenciamiento\",IF(BD162<100%,\"falta una respuesta\",\"ok\"))","v":{"$error":"#DIV/0!"}}]
[null,2,null,null,null,null,null,null,null,null,null,null,null,null,null,null,null,null,null,null,null,null,null,null,null,null,null,null,null,null,null,null,null,null,null,null,null,null,null,null,null,null,null,null,null,null,null,null,null,null,null,null,0,{"$f":"+BA163*2","v":0},{"$error":"#DIV/0!"}]
[null,3,null,null,null,null,null,null,null,null,null,null,null,null,null,null,null,null,null,null,null,null,null,null,null,null,null,null,null,null,null,null,null,null,null,null,null,null,null,null,null,null,null,null,null,null,null,null,null,null,null,null,0,{"$f":"+BA164*3","v":0},{"$error":"#DIV/0!"}]
[null,4,null,null,null,null,null,null,null,null,null,null,null,null,null,null,null,null,null,null,null,null,null,null,null,null,null,null,null,null,null,null,null,null,null,null,null,null,null,null,null,null,null,null,null,null,null,null,null,null,null,null,0,{"$f":"+BA165*4","v":0},{"$error":"#DIV/0!"}]
[null,5,null,null,null,null,null,null,null,null,null,null,null,null,null,null,null,null,null,null,null,null,null,null,null,null,null,null,null,null,null,null,null,null,null,null,null,null,null,null,null,null,null,null,null,null,null,null,null,null,null,null,0,{"$f":"+BA166*5","v":0},{"$error":"#DIV/0!"}]
["Seguridad de los equipos y materiales utilizados:",1,null,null,null,null,null,null,null,null,null,null,null,null,null,null,null,null,null,null,null,null,null,null,null,null,null,null,null,null,null,null,null,null,null,null,null,null,null,null,null,null,null,null,null,null,null,null,null,null,null,null,0,{"$f":"+BA167*1","v":0},{"$error":"#DIV/0!"},{"$f":"SUM(BC167:BC171)","v":{"$error":"#DIV/0!"}},{"$f":"SUM(BB167:BB171)","v":0},{"$error":"#DIV/0!"}]
[null,2,null,null,null,null,null,null,null,null,null,null,null,null,null,null,null,null,null,null,null,null,null,null,null,null,null,null,null,null,null,null,null,null,null,null,null,null,null,null,null,null,null,null,null,null,null,null,null,null,null,null,0,{"$f":"+BA168*2","v":0},{"$error":"#DIV/0!"}]
[null,3,null,null,null,null,null,null,null,null,null,null,null,null,null,null,null,null,null,null,null,null,null,null,null,null,null,null,null,null,null,null,null,null,null,null,null,null,null,null,null,null,null,null,null,null,null,null,null,null,null,null,0,{"$f":"+BA169*3","v":0},{"$error":"#DIV/0!"}]
[null,4,null,null,null,null,null,null,null,null,null,null,null,null,null,null,null,null,null,null,null,null,null,null,null,null,null,null,null,null,null,null,null,null,null,null,null,null,null,null,null,null,null,null,null,null,null,null,null,null,null,null,0,{"$f":"+BA170*4","v":0},{"$error":"#DIV/0!"}]
[null,5,null,null,null,null,null,null,null,null,null,null,null,null,null,null,null,null,null,null,null,null,null,null,null,null,null,null,null,null,null,null,null,null,null,null,null,null,null,null,null,null,null,null,null,null,null,null,null,null,null,null,0,{"$f":"+BA171*5","v":0},{"$error":"#DIV/0!"}]
["Comportamiento de los asistentes:",1,null,null,null,null,null,null,null,null,null,null,null,null,null,null,null,null,null,null,null,null,null,null,null,null,null,null,null,null,null,null,null,null,null,null,null,null,null,null,null,null,null,null,null,null,null,null,null,null,null,null,0,{"$f":"+BA172*1","v":0},{"$error":"#DIV/0!"},{"$f":"SUM(BC172:BC176)","v":{"$error":"#DIV/0!"}},{"$f":"SUM(BB172:BB176)","v":0},{"$error":"#DIV/0!"}]
[null,2,null,null,null,null,null,null,null,null,null,null,null,null,null,null,null,null,null,null,null,null,null,null,null,null,null,null,null,null,null,null,null,null,null,null,null,null,null,null,null,null,null,null,null,null,null,null,null,null,null,null,0,{"$f":"+BA173*2","v":0},{"$error":"#DIV/0!"}]
[null,3,null,null,null,null,null,null,null,null,null,null,null,null,null,null,null,null,null,null,null,null,null,null,null,null,null,null,null,null,null,null,null,null,null,null,null,null,null,null,null,null,null,null,null,null,null,null,null,null,null,null,0,{"$f":"+BA174*3","v":0},{"$error":"#DIV/0!"}]
[null,4,null,null,null,null,null,null,null,null,null,null,null,null,null,null,null,null,null,null,null,null,null,null,null,null,null,null,null,null,null,null,null,null,null,null,null,null,null,null,null,null,null,null,null,null,null,null,null,null,null,null,0,{"$f":"+BA175*4","v":0},{"$error":"#DIV/0!"}]
[null,5,null,null,null,null,null,null,null,null,null,null,null,null,null,null,null,null,null,null,null,null,null,null,null,null,null,null,null,null,null,null,null,null,null,null,null,null,null,null,null,null,null,null,null,null,null,null,null,null,null,null,0,{"$f":"+BA176*5","v":0},{"$error":"#DIV/0!"}]
["Atención Prestada por parte del Operador Logístico\n(Recreadores, Brigadistas, Guias, Meseros, entre otros)"]
["Servicio amable y oportuno:",1,null,null,null,null,null,null,null,null,null,null,null,null,null,null,null,null,null,null,null,null,null,null,null,null,null,null,null,null,null,null,null,null,null,null,null,null,null,null,null,null,null,null,null,null,null,null,null,null,null,null,{"$f":"COUNTA(C178:AZ178)","v":0},{"$f":"+BA178*1","v":0},{"$f":"+BA178/$B$10","v":{"$error":"#DIV/0!"}},{"$f":"SUM(BC178:BC182)","v":{"$error":"#DIV/0!"}},{"$f":"SUM(BB178:BB182)","v":0},{"$f":"IF(BD178>100%,\"Verifique  diligenciamiento\",IF(BD178<100%,\"falta una respuesta\",\"ok\"))","v":{"$error":"#DIV/0!"}}]
[null,2,null,null,null,null,null,null,null,null,null,null,null,null,null,null,null,null,null,null,null,null,null,null,null,null,null,null,null,null,null,null,null,null,null,null,null,null,null,null,null,null,null,null,null,null,null,null,null,null,null,null,0,{"$f":"+BA179*2","v":0},{"$error":"#DIV/0!"}]
[null,3,null,null,null,null,null,null,null,null,null,null,null,null,null,null,null,null,null,null,null,null,null,null,null,null,null,null,null,null,null,null,null,null,null,null,null,null,null,null,null,null,null,null,null,null,null,null,null,null,null,null,0,{"$f":"+BA180*3","v":0},{"$error":"#DIV/0!"}]
[null,4,null,null,null,null,null,null,null,null,null,null,null,null,null,null,null,null,null,null,null,null,null,null,null,null,null,null,null,null,null,null,null,null,null,null,null,null,null,null,null,null,null,null,null,null,null,null,null,null,null,null,0,{"$f":"+BA181*4","v":0},{"$error":"#DIV/0!"}]
[null,5,null,null,null,null,null,null,null,null,null,null,null,null,null,null,null,null,null,null,null,null,null,null,null,null,null,null,null,null,null,null,null,null,null,null,null,null,null,null,null,null,null,null,null,null,null,null,null,null,null,null,0,{"$f":"+BA182*5","v":0},{"$error":"#DIV/0!"}]
["Habilidad en la prestación del servicio brindado por el operador logístico:",1,null,null,null,null,null,null,null,null,null,null,null,null,null,null,null,null,null,null,null,null,null,null,null,null,null,null,null,null,null,null,null,null,null,null,null,null,null,null,null,null,null,null,null,null,null,null,null,null,null,null,{"$f":"COUNTA(C183:AZ183)","v":0},{"$f":"+BA183*1","v":0},{"$f":"+BA183/$B$10","v":{"$error":"#DIV/0!"}},{"$f":"SUM(BC183:BC187)","v":{"$error":"#DIV/0!"}},{"$f":"SUM(BB183:BB187)","v":0},{"$f":"IF(BD183>100%,\"Verifique  diligenciamiento\",IF(BD183<100%,\"falta una respuesta\",\"ok\"))","v":{"$error":"#DIV/0!"}}]
[null,2,null,null,null,null,null,null,null,null,null,null,null,null,null,null,null,null,null,null,null,null,null,null,null,null,null,null,null,null,null,null,null,null,null,null,null,null,null,null,null,null,null,null,null,null,null,null,null,null,null,null,0,{"$f":"+BA184*2","v":0},{"$error":"#DIV/0!"}]
[null,3,null,null,null,null,null,null,null,null,null,null,null,null,null,null,null,null,null,null,null,null,null,null,null,null,null,null,null,null,null,null,null,null,null,null,null,null,null,null,null,null,null,null,null,null,null,null,null,null,null,null,0,{"$f":"+BA185*3","v":0},{"$error":"#DIV/0!"}]
[null,4,null,null,null,null,null,null,null,null,null,null,null,null,null,null,null,null,null,null,null,null,null,null,null,null,null,null,null,null,null,null,null,null,null,null,null,null,null,null,null,null,null,null,null,null,null,null,null,null,null,null,0,{"$f":"+BA186*4","v":0},{"$error":"#DIV/0!"}]
[null,5,null,null,null,null,null,null,null,null,null,null,null,null,null,null,null,null,null,null,null,null,null,null,null,null,null,null,null,null,null,null,null,null,null,null,null,null,null,null,null,null,null,null,null,null,null,null,null,null,null,null,0,{"$f":"+BA187*5","v":0},{"$error":"#DIV/0!"}]
["Atención a solicitudes oportunas:",1,null,null,null,null,null,null,null,null,null,null,null,null,null,null,null,null,null,null,null,null,null,null,null,null,null,null,null,null,null,null,null,null,null,null,null,null,null,null,null,null,null,null,null,null,null,null,null,null,null,null,0,{"$f":"+BA188*1","v":0},{"$error":"#DIV/0!"},{"$f":"SUM(BC188:BC192)","v":{"$error":"#DIV/0!"}},{"$f":"SUM(BB188:BB192)","v":0},{"$f":"IF(BD188>100%,\"Verifique  diligenciamiento\",IF(BD188<100%,\"falta una respuesta\",\"ok\"))","v":{"$error":"#DIV/0!"}}]
[null,2,null,null,null,null,null,null,null,null,null,null,null,null,null,null,null,null,null,null,null,null,null,null,null,null,null,null,null,null,null,null,null,null,null,null,null,null,null,null,null,null,null,null,null,null,null,null,null,null,null,null,0,{"$f":"+BA189*2","v":0},{"$error":"#DIV/0!"}]
[null,3,null,null,null,null,null,null,null,null,null,null,null,null,null,null,null,null,null,null,null,null,null,null,null,null,null,null,null,null,null,null,null,null,null,null,null,null,null,null,null,null,null,null,null,null,null,null,null,null,null,null,0,{"$f":"+BA190*3","v":0},{"$error":"#DIV/0!"}]
[null,4,null,null,null,null,null,null,null,null,null,null,null,null,null,null,null,null,null,null,null,null,null,null,null,null,null,null,null,null,null,null,null,null,null,null,null,null,null,null,null,null,null,null,null,null,null,null,null,null,null,null,0,{"$f":"+BA191*4","v":0},{"$error":"#DIV/0!"}]
[null,5,null,null,null,null,null,null,null,null,null,null,null,null,null,null,null,null,null,null,null,null,null,null,null,null,null,null,null,null,null,null,null,null,null,null,null,null,null,null,null,null,null,null,null,null,null,null,null,null,null,null,0,{"$f":"+BA192*5","v":0},{"$error":"#DIV/0!"}]
["Presentación personal:",1,null,null,null,null,null,null,null,null,null,null,null,null,null,null,null,null,null,null,null,null,null,null,null,null,null,null,null,null,null,null,null,null,null,null,null,null,null,null,null,null,null,null,null,null,null,null,null,null,null,null,0,{"$f":"+BA193*1","v":0},{"$error":"#DIV/0!"},{"$f":"SUM(BC193:BC197)","v":{"$error":"#DIV/0!"}},{"$f":"SUM(BB193:BB197)","v":0},{"$f":"IF(BD193>100%,\"Verifique  diligenciamiento\",IF(BD193<100%,\"falta una respuesta\",\"ok\"))","v":{"$error":"#DIV/0!"}}]
[null,2,null,null,null,null,null,null,null,null,null,null,null,null,null,null,null,null,null,null,null,null,null,null,null,null,null,null,null,null,null,null,null,null,null,null,null,null,null,null,null,null,null,null,null,null,null,null,null,null,null,null,0,{"$f":"+BA194*2","v":0},{"$error":"#DIV/0!"}]
[null,3,null,null,null,null,null,null,null,null,null,null,null,null,null,null,null,null,null,null,null,null,null,null,null,null,null,null,null,null,null,null,null,null,null,null,null,null,null,null,null,null,null,null,null,null,null,null,null,null,null,null,0,{"$f":"+BA195*3","v":0},{"$error":"#DIV/0!"}]
[null,4,null,null,null,null,null,null,null,null,null,null,null,null,null,null,null,null,null,null,null,null,null,null,null,null,null,null,null,null,null,null,null,null,null,null,null,null,null,null,null,null,null,null,null,null,null,null,null,null,null,null,0,{"$f":"+BA196*4","v":0},{"$error":"#DIV/0!"}]
[null,5,null,null,null,null,null,null,null,null,null,null,null,null,null,null,null,null,null,null,null,null,null,null,null,null,null,null,null,null,null,null,null,null,null,null,null,null,null,null,null,null,null,null,null,null,null,null,null,null,null,null,0,{"$f":"+BA197*5","v":0},{"$error":"#DIV/0!"}]
[null,null,null,null,null,null,null,null,null,null,null,null,null,null,null,null,null,null,null,null,null,null,null,null,null,null,null,null,null,null,null,null,null,null,null,null,null,null,null,null,null,null,null,null,null,null,null,null,null,null,null,null,null,null,null,"Número de preguntas contestas",{"$f":"COUNTIF(BE13:BE197,\">0\")","v":0}]
[null,null,null,null,null,null,null,null,null,null,null,null,null,null,null,null,null,null,null,null,null,null,null,null,null,null,null,null,null,null,null,null,null,null,null,null,null,null,null,null,null,null,null,null,null,null,null,null,null,null,null,null,null,null,null,"Sumatoria calificación encuestas",{"$f":"SUM(BE13:BE197)/BE198","v":{"$error":"#DIV/0!"}}]
["Antes de imprimir este documento… piense en el medio ambiente!  \n     Cualquier copia impresa de este documento se considera como COPIA NO CONTROLADA.\nLOS DATOS PROPORCIONADOS SERÁN TRATADOS DE ACUERDO A LA POLÌTICA DE TRATAMIENTO DE DATOS PERSONALES DEL ICBF Y A LA LEY 1581 DE 2012"]

{"sheet":"Encuesta Satisfacción Virtual","index":2,"n_rows":70,"n_cols":254,"rows_kept":70,"cut":false,"hidden":false,"merged":[[60,0,60,9],[60,10,60,14],[57,0,57,9],[68,0,68,14],[69,0,71,14],[61,1,61,9],[62,1,62,9],[63,1,63,9],[64,0,64,14],[65,0,67,14],[57,10,57,14],[58,1,58,9],[52,10,52,14],[59,1,59,9],[46,1,46,9],[53,1,53,9],[56,1,56,9],[45,0,45,9],[54,1,54,9],[55,1,55,9],[51,0,51,9],[52,0,52,9],[47,1,47,9],[48,1,48,9],[49,1,49,9],[50,1,50,9],[44,1,44,9],[39,1,39,9],[29,1,29,9],[30,1,30,9],[31,1,31,9],[32,0,32,9],[33,1,33,14],[34,0,36,14],[37,0,37,9],[37,10,37,14],[38,1,38,9],[40,1,40,9],[41,0,41,9],[42,0,42,9],[42,10,42,14],[43,1,43,9],[28,0,28,9],[27,0,27,14],[28,10,28,14],[26,1,26,14],[32,10,32,14],[18,0,18,14],[20,0,20,14],[22,0,22,9],[23,0,23,9],[23,10,23,14],[24,1,24,9],[25,1,25,9],[17,0,17,14],[5,0,5,14],[7,4,7,5],[7,8,7,9],[9,0,9,2],[9,3,9,14],[12,0,12,1],[12,2,12,5],[12,7,12,9],[12,10,12,14],[14,0,14,1],[14,2,14,5],[14,10,14,14],[15,0,15,1],[15,2,15,5],[0,0,4,0],[0,1,4,10],[0,11,1,12],[0,13,1,14],[2,11,3,12],[2,13,3,14],[4,11,4,14]]}
[null,"PROCESO DE GESTIÓN DEL TALENTO HUMANO\n\nFORMATO ENCUESTA DE SATISFACCIÓN DE BIENESTAR SOCIAL E INCENTIVOS \nACTIVIDAD VIRTUAL",null,null,null,null,null,null,null,null,null,"F6.P1.GTH",null,"2020-08-31"]
[]
[null,null,null,null,null,null,null,null,null,null,null,"Versión 4",null,"Página 1 de 1"]
[]
[null,null,null,null,null,null,null,null,null,null,null,"Clasificación de la información\nPública"]
[]
[]
[null,null,null,"Fecha: ","Día ",null,null,null,"Mes",null,null,null,"Año"]
[]
["NOMBRE DE LA ACTIVIDAD:"]
[]
[]
["Nombre y Apellidos",null,"_____________________________________",null,null,null,null,"Regional / Sede",null,null,"___________________________"]
[]
["Cargo:",null,"____________________________________",null,null,null,null,"Cédula"]
["Centro zonal o dependencia",null,"____________________________________"]
[]
["Para la Dirección de Gestión Humana es importante saber su opinión acerca de las diferentes actividades que se realizan en la Entidad para nuestros servidores públicos  y  sus familias de manera virtual, por lo tanto deseamos conocer su opinión o comentarios respecto a las actividades de Bienestar en las cuales ha participado, con el fin de mejorar cada dia. "]
["  Su opinión es de gran importancia para nosotros."]
[]
["Por favor califique cada aspecto de 1 a 5, para expresar su satisfacción teniendo en cuenta la siguiente escala, donde 1 es Totalmente Insatisfecho y 5 es Totalmente Satisfecho:"]
[]
["EXPECTATIVA DE LA ACTIVIDAD ",null,null,null,null,null,null,null,null,null,1,2,3,4,5,null,null,null,null,null,null,null,null,null,null,null,null,null,null,null,null,null,null,null,null,null,null,null,null,null,null,null,null,null,null,null,null,null,null,null,null,null,null,null,null,null,null,null,null,null,null,null,null,null,null,null,null,null,null,null,null,null,null,null,null,null,null,null,null,null,null,null,null,null,null,null,null,null,null,null,null,null,null,null,null,null,null,null,null,null,null,null,null,null,null,null,null,null,null,null,null,null,null,null,null,null,null,null,null,null,null,null,null,null,null,null,null,null,null,null,null,null,null,null,null,null,null,null,null,null,null,null,null,null,null,null,null,null,null,null,null,null,null,null,null,null,null,null,null,null,null,null,null,null,null,null,null,null,null,null,null,null,null,null,null,null,null,null,null,null,null,null,null,null,null,null,null,null,null,null,null,null,null,null,null,null,null,null,null,null,null,null,null,null,null,null,null,null,null,null,null,null,null,null,null,null,null,null,null,null,null,null,null,null,null,null,null,null,null,null,null,null,null,null,null,null,null,null,null,null,null,null,null,null,null,null,null,null,null,null,null,null,null," "]
["Actividad con Familias / Unión familiar "]
[1,"La  actividad permitió la integración de su familia"]
[2,"La  actividad generó  bienestar en su familia"]
[3,"Número de  familiares con los que compartiste esta actividad?"]
[]
["Calidad "]
[4,"Calidad de la actividad (como le pareció la actividad realizada)"]
[5,"Considera que la actividad realizada cumplió con sus expectativas"]
[6,"La actividad fue de su interés"]
["Enseñanza o Reflexión Obtenida"]
[7,"Qué enseñanza o reflexión puede compartirnos de la actividad realizada?"]
[]
[]
[]
["Organización"]
[8,"Se le informó a tiempo de la actividad (convocatoria)"]
[9,"Cumplimiento con el horario establecido de la actividad (inicio / conexión de la actividad)"]
[10,"Organización de la actividad en general (envío link conexión)"]
["TALENTO HUMANO\nCompetente e idóneo",null,null,null,null,null,null,null,null,null,1,2,3,4,5]
["Coordinador del Evento "]
[11,"Habilidad en la prestación del servicio"]
[12,"Capacidad para dar soluciones y alternativas"]
["Tallerista /Facilitador /Capacitador"]
[13,"Dominio del tema o de la actividad realizada"]
[14,"Se resolvieron las inquietudes del taller, curso, charla o actividad realizada"]
[15,"El contenido fue oportuno y de calidad"]
[16,"Los temas tratados fueron de utilidad y de aprendizaje"]
[17,"El capacitador se dio a entender"]
["LOGISTICA",null,null,null,null,null,null,null,null,null,1,2,3,4,5]
["Escenografias y Materiales"]
[18,"Estado de las escenografías"]
[19,"Estado de los materiales utilizados"]
[20,"Calidad en la conexión "]
[21,"Adecuación y ambientación del lugar"]
["Seguridad"]
[22,"Seguridad de la plataforma utilizada"]
[23,"Comportamiento de los asistentes (manejo adecuado del de chat, cámara y micrófono)"]
["Atención Prestada por parte del Operador Logístico\n"]
[24,"Servicio amable y oportuno"]
[25,"Habilidad en la prestación del servicio brindado por el operador logístico"]
[26,"Atención a solicitudes oportunas"]
["COMENTARIOS Y/O SUGERENCIAS"]
[]
[]
[]
["Gracias!!!!"]
["Antes de imprimir este documento… piense en el medio ambiente!  \n     Cualquier copia impresa de este documento se considera como COPIA NO CONTROLADA.\nLOS DATOS PROPORCIONADOS SERÁN TRATADOS DE ACUERDO A LA POLÌTICA DE TRATAMIENTO DE DATOS PERSONALES DEL ICBF Y A LA LEY 1581 DE 2012"]

{"sheet":"Tabulación Enc. Virtual","index":3,"n_rows":142,"n_cols":58,"rows_kept":142,"cut":false,"hidden":false,"merged":[[0,56,1,57],[2,54,3,55],[2,56,3,57],[4,54,4,57],[6,0,6,1],[7,0,7,1],[7,2,7,7],[7,8,7,13],[8,2,8,7],[8,8,8,12],[0,0,4,0],[0,1,4,53],[0,54,1,55],[17,0,21,0],[17,55,21,55],[17,56,21,56],[17,57,21,57],[22,0,22,54],[22,55,22,57],[10,0,10,1],[11,0,11,54],[12,0,16,0],[12,55,16,55],[12,56,16,56],[12,57,16,57],[33,0,37,0],[33,55,37,55],[33,56,37,56],[33,57,37,57],[38,0,38,54],[38,55,38,57],[23,0,27,0],[23,55,27,55],[23,56,27,56],[23,57,27,57],[28,0,32,0],[28,55,32,55],[28,56,32,56],[28,57,32,57],[49,0,53,0],[49,55,53,55],[49,56,53,56],[49,57,53,57],[54,0,54,54],[54,55,54,57],[39,0,43,0],[39,55,43,55],[39,56,43,56],[39,57,43,57],[44,0,48,0],[44,55,48,55],[44,56,48,56],[44,57,48,57],[91,0,91,54],[91,55,91,57],[55,0,59,0],[55,55,59,55],[55,56,59,56],[55,57,59,57],[60,0,64,0],[60,55,64,55],[60,56,64,56],[60,57,64,57],[86,0,90,0],[86,55,90,55],[86,56,90,56],[86,57,90,57],[65,55,65,57],[71,57,75,57],[76,0,80,0],[76,55,80,55],[76,56,80,56],[76,57,80,57],[81,0,85,0],[81,55,85,55],[81,56,85,56],[81,57,85,57],[102,0,106,0],[102,55,106,55],[102,56,106,56],[102,57,106,57],[107,0,111,0],[107,55,111,55],[107,56,111,56],[107,57,111,57],[92,0,96,0],[92,55,96,55],[92,56,96,56],[92,57,96,57],[97,0,101,0],[97,55,101,55],[97,56,101,56],[97,57,101,57],[113,0,117,0],[113,55,117,55],[113,56,117,56],[113,57,117,57],[118,0,122,0],[118,55,122,55],[118,56,122,56],[118,57,122,57],[112,0,112,54],[112,55,112,57],[139,57,140,57],[141,0,143,57],[65,0,65,54],[66,0,70,0],[66,55,70,55],[66,56,70,56],[66,57,70,57],[71,0,75,0],[71,55,75,55],[71,56,75,56],[134,0,138,0],[134,55,138,55],[134,56,138,56],[134,57,138,57],[124,0,128,0],[124,55,128,55],[124,56,128,56],[124,57,128,57],[129,0,133,0],[129,55,133,55],[129,56,133,56],[129,57,133,57],[123,0,123,54],[123,55,123,57]]}
[null,"PROCESO DE GESTIÓN DEL TALENTO HUMANO\n\nFORMATO ENCUESTA DE SATISFACCIÓN DE BIENESTAR SOCIAL E INCENTIVOS ACTIVIDAD VIRTUAL",null,null,null,null,null,null,null,null,null,null,null,null,null,null,null,null,null,null,null,null,null,null,null,null,null,null,null,null,null,null,null,null,null,null,null,null,null,null,null,null,null,null,null,null,null,null,null,null,null,null,null,null,"F6.P1.GTH",null,"2020-08-31"]
[]
[null,null,null,null,null,null,null,null,null,null,null,null,null,null,null,null,null,null,null,null,null,null,null,null,null,null,null,null,null,null,null,null,null,null,null,null,null,null,null,null,null,null,null,null,null,null,null,null,null,null,null,null,null,null,"Versión 4",null,"Página 1 de 2"]
[]
[null,null,null,null,null,null,null,null,null,null,null,null,null,null,null,null,null,null,null,null,null,null,null,null,null,null,null,null,null,null,null,null,null,null,null,null,null,null,null,null,null,null,null,null,null,null,null,null,null,null,null,null,null,null,"Clasificación de la información\nPública"]
[]
["Nombre de la actividad de Bienestar : ________________________________________________"]
["Fecha inicio: ___________",null,"Fecha finalización: "]
[" ",null,"No. Participantes:"]
["No. encuestas diligenciadas :",0]
["CANTIDAD DE ENCUESTAS",null,1,2,3,4,5,6,7,8,9,10,11,12,13,14,15,16,17,18,19,20,21,22,23,24,25,26,27,28,29,30,31,32,33,34,35,36,37,38,39,40,41,42,43,44,45,46,47,48,49,50,"Total",null,"%"]
["Actividad con Familias / Unión familiar ",null,null,null,null,null,null,null,null,null,null,null,null,null,null,null,null,null,null,null,null,null,null,null,null,null,null,null,null,null,null,null,null,null,null,null,null,null,null,null,null,null,null,null,null,null,null,null,null,null,null,null,null,null,null,"% de respuestas contestadas","Valor total por pregunta"]
["La  actividad permitió la integración de su familia:",1,null,null,null,null,null,null,null,null,null,null,null,null,null,null,null,null,null,null,null,null,null,null,null,null,null,null,null,null,null,null,null,null,null,null,null,null,null,null,null,null,null,null,null,null,null,null,null,null,null,null,{"$f":"COUNTA(C13:AZ13)","v":0},{"$f":"+BA13*1","v":0},{"$f":"+BA13/$B$10","v":{"$error":"#DIV/0!"}},{"$f":"SUM(BC13:BC17)","v":{"$error":"#DIV/0!"}},{"$f":"SUM(BB13:BB17)","v":0},{"$f":"IF(BD13>100%,\"Verifique  diligenciamiento\",IF(BD13<100%,\"falta una respuesta\",\"ok\"))","v":{"$error":"#DIV/0!"}}]
[null,2,null,null,null,null,null,null,null,null,null,null,null,null,null,null,null,null,null,null,null,null,null,null,null,null,null,null,null,null,null,null,null,null,null,null,null,null,null,null,null,null,null,null,null,null,null,null,null,null,null,null,{"$f":"COUNTA(C14:AZ14)","v":0},{"$f":"+BA14*2","v":0},{"$f":"+BA14/$B$10","v":{"$error":"#DIV/0!"}}]
[null,3,null,null,null,null,null,null,null,null,null,null,null,null,null,null,null,null,null,null,null,null,null,null,null,null,null,null,null,null,null,null,null,null,null,null,null,null,null,null,null,null,null,null,null,null,null,null,null,null,null,null,0,{"$f":"+BA15*3","v":0},{"$error":"#DIV/0!"}]
[null,4,null,null,null,null,null,null,null,null,null,null,null,null,null,null,null,null,null,null,null,null,null,null,null,null,null,null,null,null,null,null,null,null,null,null,null,null,null,null,null,null,null,null,null,null,null,null,null,null,null,null,0,{"$f":"+BA16*4","v":0},{"$f":"+BA16/$B$10","v":{"$error":"#DIV/0!"}}]
[null,5,null,null,null,null,null,null,null,null,null,null,null,null,null,null,null,null,null,null,null,null,null,null,null,null,null,null,null,null,null,null,null,null,null,null,null,null,null,null,null,null,null,null,null,null,null,null,null,null,null,null,0,{"$f":"+BA17*5","v":0},{"$f":"+BA17/$B$10","v":{"$error":"#DIV/0!"}}]
["La  actividad generó  bienestar en su familia:",1,null,null,null,null,null,null,null,null,null,null,null,null,null,null,null,null,null,null,null,null,null,null,null,null,null,null,null,null,null,null,null,null,null,null,null,null,null,null,null,null,null,null,null,null,null,null,null,null,null,null,0,{"$f":"+BA18*1","v":0},{"$f":"+BA18/$B$10","v":{"$error":"#DIV/0!"}},{"$f":"SUM(BC18:BC22)","v":{"$error":"#DIV/0!"}},{"$f":"SUM(BB18:BB22)","v":0},{"$f":"IF(BD18>100%,\"Verifique  diligenciamiento\",IF(BD18<100%,\"falta una respuesta\",\"ok\"))","v":{"$error":"#DIV/0!"}}]
[null,2,null,null,null,null,null,null,null,null,null,null,null,null,null,null,null,null,null,null,null,null,null,null,null,null,null,null,null,null,null,null,null,null,null,null,null,null,null,null,null,null,null,null,null,null,null,null,null,null,null,null,0,{"$f":"+BA19*2","v":0},{"$error":"#DIV/0!"}]
[null,3,null,null,null,null,null,null,null,null,null,null,null,null,null,null,null,null,null,null,null,null,null,null,null,null,null,null,null,null,null,null,null,null,null,null,null,null,null,null,null,null,null,null,null,null,null,null,null,null,null,null,0,{"$f":"+BA20*3","v":0},{"$error":"#DIV/0!"}]
[null,4,null,null,null,null,null,null,null,null,null,null,null,null,null,null,null,null,null,null,null,null,null,null,null,null,null,null,null,null,null,null,null,null,null,null,null,null,null,null,null,null,null,null,null,null,null,null,null,null,null,null,0,{"$f":"+BA21*4","v":0},{"$error":"#DIV/0!"}]
[null,5,null,null,null,null,null,null,null,null,null,null,null,null,null,null,null,null,null,null,null,null,null,null,null,null,null,null,null,null,null,null,null,null,null,null,null,null,null,null,null,null,null,null,null,null,null,null,null,null,null,null,0,{"$f":"+BA22*5","v":0},{"$error":"#DIV/0!"}]
["Calidad"]
["Calidad de la actividad (como le pareció la actividad realizada):",1,null,null,null,null,null,null,null,null,null,null,null,null,null,null,null,null,null,null,null,null,null,null,null,null,null,null,null,null,null,null,null,null,null,null,null,null,null,null,null,null,null,null,null,null,null,null,null,null,null,null,0,{"$f":"+BA24*1","v":0},{"$error":"#DIV/0!"},{"$f":"SUM(BC24:BC28)","v":{"$error":"#DIV/0!"}},{"$f":"SUM(BB24:BB28)","v":0},{"$f":"IF(BD24>100%,\"Verifique  diligenciamiento\",IF(BD24<100%,\"falta una respuesta\",\"ok\"))","v":{"$error":"#DIV/0!"}}]
[null,2,null,null,null,null,null,null,null,null,null,null,null,null,null,null,null,null,null,null,null,null,null,null,null,null,null,null,null,null,null,null,null,null,null,null,null,null,null,null,null,null,null,null,null,null,null,null,null,null,null,null,0,{"$f":"+BA25*2","v":0},{"$error":"#DIV/0!"}]
[null,3,null,null,null,null,null,null,null,null,null,null,null,null,null,null,null,null,null,null,null,null,null,null,null,null,null,null,null,null,null,null,null,null,null,null,null,null,null,null,null,null,null,null,null,null,null,null,null,null,null,null,0,{"$f":"+BA26*3","v":0},{"$error":"#DIV/0!"}]
[null,4,null,null,null,null,null,null,null,null,null,null,null,null,null,null,null,null,null,null,null,null,null,null,null,null,null,null,null,null,null,null,null,null,null,null,null,null,null,null,null,null,null,null,null,null,null,null,null,null,null,null,0,{"$f":"+BA27*4","v":0},{"$error":"#DIV/0!"}]
[null,5,null,null,null,null,null,null,null,null,null,null,null,null,null,null,null,null,null,null,null,null,null,null,null,null,null,null,null,null,null,null,null,null,null,null,null,null,null,null,null,null,null,null,null,null,null,null,null,null,null,null,0,{"$f":"+BA28*5","v":0},{"$error":"#DIV/0!"}]
["Considera que la actividad realizada cumplió con sus expectativas:",1,null,null,null,null,null,null,null,null,null,null,null,null,null,null,null,null,null,null,null,null,null,null,null,null,null,null,null,null,null,null,null,null,null,null,null,null,null,null,null,null,null,null,null,null,null,null,null,null,null,null,0,{"$f":"+BA29*1","v":0},{"$error":"#DIV/0!"},{"$f":"SUM(BC29:BC33)","v":{"$error":"#DIV/0!"}},{"$f":"SUM(BB29:BB33)","v":0},{"$f":"IF(BD29>100%,\"Verifique  diligenciamiento\",IF(BD29<100%,\"falta una respuesta\",\"ok\"))","v":{"$error":"#DIV/0!"}}]
[null,2,null,null,null,null,null,null,null,null,null,null,null,null,null,null,null,null,null,null,null,null,null,null,null,null,null,null,null,null,null,null,null,null,null,null,null,null,null,null,null,null,null,null,null,null,null,null,null,null,null,null,0,{"$f":"+BA30*2","v":0},{"$error":"#DIV/0!"}]
[null,3,null,null,null,null,null,null,null,null,null,null,null,null,null,null,null,null,null,null,null,null,null,null,null,null,null,null,null,null,null,null,null,null,null,null,null,null,null,null,null,null,null,null,null,null,null,null,null,null,null,null,0,{"$f":"+BA31*3","v":0},{"$error":"#DIV/0!"}]
[null,4,null,null,null,null,null,null,null,null,null,null,null,null,null,null,null,null,null,null,null,null,null,null,null,null,null,null,null,null,null,null,null,null,null,null,null,null,null,null,null,null,null,null,null,null,null,null,null,null,null,null,0,{"$f":"+BA32*4","v":0},{"$error":"#DIV/0!"}]
[null,5,null,null,null,null,null,null,null,null,null,null,null,null,null,null,null,null,null,null,null,null,null,null,null,null,null,null,null,null,null,null,null,null,null,null,null,null,null,null,null,null,null,null,null,null,null,null,null,null,null,null,0,{"$f":"+BA33*5","v":0},{"$error":"#DIV/0!"}]
["La actividad fue de su interés:",1,null,null,null,null,null,null,null,null,null,null,null,null,null,null,null,null,null,null,null,null,null,null,null,null,null,null,null,null,null,null,null,null,null,null,null,null,null,null,null,null,null,null,null,null,null,null,null,null,null,null,0,{"$f":"+BA34*1","v":0},{"$error":"#DIV/0!"},{"$f":"SUM(BC34:BC38)","v":{"$error":"#DIV/0!"}},{"$f":"SUM(BB34:BB38)","v":0},{"$f":"IF(BD34>100%,\"Verifique  diligenciamiento\",IF(BD34<100%,\"falta una respuesta\",\"ok\"))","v":{"$error":"#DIV/0!"}}]
[null,2,null,null,null,null,null,null,null,null,null,null,null,null,null,null,null,null,null,null,null,null,null,null,null,null,null,null,null,null,null,null,null,null,null,null,null,null,null,null,null,null,null,null,null,null,null,null,null,null,null,null,0,{"$f":"+BA35*2","v":0},{"$error":"#DIV/0!"}]
[null,3,null,null,null,null,null,null,null,null,null,null,null,null,null,null,null,null,null,null,null,null,null,null,null,null,null,null,null,null,null,null,null,null,null,null,null,null,null,null,null,null,null,null,null,null,null,null,null,null,null,null,0,{"$f":"+BA36*3","v":0},{"$error":"#DIV/0!"}]
[null,4,null,null,null,null,null,null,null,null,null,null,null,null,null,null,null,null,null,null,null,null,null,null,null,null,null,null,null,null,null,null,null,null,null,null,null,null,null,null,null,null,null,null,null,null,null,null,null,null,null,null,0,{"$f":"+BA37*4","v":0},{"$error":"#DIV/0!"}]
[null,5,null,null,null,null,null,null,null,null,null,null,null,null,null,null,null,null,null,null,null,null,null,null,null,null,null,null,null,null,null,null,null,null,null,null,null,null,null,null,null,null,null,null,null,null,null,null,null,null,null,null,0,{"$f":"+BA38*5","v":0},{"$error":"#DIV/0!"}]
["Organización"]
["Se le informó a tiempo de la actividad (convocatoria):",1,null,null,null,null,null,null,null,null,null,null,null,null,null,null,null,null,null,null,null,null,null,null,null,null,null,null,null,null,null,null,null,null,null,null,null,null,null,null,null,null,null,null,null,null,null,null,null,null,null,null,{"$f":"COUNTA(C40:AZ40)","v":0},{"$f":"+BA40*1","v":0},{"$f":"+BA40/$B$10","v":{"$error":"#DIV/0!"}},{"$f":"SUM(BC40:BC44)","v":{"$error":"#DIV/0!"}},{"$f":"SUM(BB40:BB44)","v":0},{"$f":"IF(BD40>100%,\"Verifique  diligenciamiento\",IF(BD40<100%,\"falta una respuesta\",\"ok\"))","v":{"$error":"#DIV/0!"}}]
[null,2,null,null,null,null,null,null,null,null,null,null,null,null,null,null,null,null,null,null,null,null,null,null,null,null,null,null,null,null,null,null,null,null,null,null,null,null,null,null,null,null,null,null,null,null,null,null,null,null,null,null,0,{"$f":"+BA41*2","v":0},{"$error":"#DIV/0!"}]
[null,3,null,null,null,null,null,null,null,null,null,null,null,null,null,null,null,null,null,null,null,null,null,null,null,null,null,null,null,null,null,null,null,null,null,null,null,null,null,null,null,null,null,null,null,null,null,null,null,null,null,null,0,{"$f":"+BA42*3","v":0},{"$error":"#DIV/0!"}]
[null,4,null,null,null,null,null,null,null,null,null,null,null,null,null,null,null,null,null,null,null,null,null,null,null,null,null,null,null,null,null,null,null,null,null,null,null,null,null,null,null,null,null,null,null,null,null,null,null,null,null,null,0,{"$f":"+BA43*4","v":0},{"$error":"#DIV/0!"}]
[null,5,null,null,null,null,null,null,null,null,null,null,null,null,null,null,null,null,null,null,null,null,null,null,null,null,null,null,null,null,null,null,null,null,null,null,null,null,null,null,null,null,null,null,null,null,null,null,null,null,null,null,0,{"$f":"+BA44*5","v":0},{"$error":"#DIV/0!"}]
["Cumplimiento con el horario establecido de la actividad (inicio / conexión de la actividad):",1,null,null,null,null,null,null,null,null,null,null,null,null,null,null,null,null,null,null,null,null,null,null,null,null,null,null,null,null,null,null,null,null,null,null,null,null,null,null,null,null,null,null,null,null,null,null,null,null,null,null,0,{"$f":"+BA45*1","v":0},{"$error":"#DIV/0!"},{"$f":"SUM(BC45:BC49)","v":{"$error":"#DIV/0!"}},{"$f":"SUM(BB45:BB49)","v":0},{"$f":"IF(BD45>100%,\"Verifique  diligenciamiento\",IF(BD45<100%,\"falta una respuesta\",\"ok\"))","v":{"$error":"#DIV/0!"}}]
[null,2,null,null,null,null,null,null,null,null,null,null,null,null,null,null,null,null,null,null,null,null,null,null,null,null,null,null,null,null,null,null,null,null,null,null,null,null,null,null,null,null,null,null,null,null,null,null,null,null,null,null,0,{"$f":"+BA46*2","v":0},{"$error":"#DIV/0!"}]
[null,3,null,null,null,null,null,null,null,null,null,null,null,null,null,null,null,null,null,null,null,null,null,null,null,null,null,null,null,null,null,null,null,null,null,null,null,null,null,null,null,null,null,null,null,null,null,null,null,null,null,null,0,{"$f":"+BA47*3","v":0},{"$error":"#DIV/0!"}]
[null,4,null,null,null,null,null,null,null,null,null,null,null,null,null,null,null,null,null,null,null,null,null,null,null,null,null,null,null,null,null,null,null,null,null,null,null,null,null,null,null,null,null,null,null,null,null,null,null,null,null,null,0,{"$f":"+BA48*4","v":0},{"$error":"#DIV/0!"}]
[null,5,null,null,null,null,null,null,null,null,null,null,null,null,null,null,null,null,null,null,null,null,null,null,null,null,null,null,null,null,null,null,null,null,null,null,null,null,null,null,null,null,null,null,null,null,null,null,null,null,null,null,0,{"$f":"+BA49*5","v":0},{"$error":"#DIV/0!"}]
["Organización de la actividad en general (envío link conexión):",1,null,null,null,null,null,null,null,null,null,null,null,null,null,null,null,null,null,null,null,null,null,null,null,null,null,null,null,null,null,null,null,null,null,null,null,null,null,null,null,null,null,null,null,null,null,null,null,null,null,null,0,{"$f":"+BA50*1","v":0},{"$error":"#DIV/0!"},{"$f":"SUM(BC50:BC54)","v":{"$error":"#DIV/0!"}},{"$f":"SUM(BB50:BB54)","v":0},{"$error":"#DIV/0!"}]
[null,2,null,null,null,null,null,null,null,null,null,null,null,null,null,null,null,null,null,null,null,null,null,null,null,null,null,null,null,null,null,null,null,null,null,null,null,null,null,null,null,null,null,null,null,null,null,null,null,null,null,null,0,{"$f":"+BA51*2","v":0},{"$error":"#DIV/0!"}]
[null,3,null,null,null,null,null,null,null,null,null,null,null,null,null,null,null,null,null,null,null,null,null,null,null,null,null,null,null,null,null,null,null,null,null,null,null,null,null,null,null,null,null,null,null,null,null,null,null,null,null,null,0,{"$f":"+BA52*3","v":0},{"$error":"#DIV/0!"}]
[null,4,null,null,null,null,null,null,null,null,null,null,null,null,null,null,null,null,null,null,null,null,null,null,null,null,null,null,null,null,null,null,null,null,null,null,null,null,null,null,null,null,null,null,null,null,null,null,null,null,null,null,0,{"$f":"+BA53*4","v":0},{"$error":"#DIV/0!"}]
[null,5,null,null,null,null,null,null,null,null,null,null,null,null,null,null,null,null,null,null,null,null,null,null,null,null,null,null,null,null,null,null,null,null,null,null,null,null,null,null,null,null,null,null,null,null,null,null,null,null,null,null,0,{"$f":"+BA54*5","v":0},{"$error":"#DIV/0!"}]
["Coordinador del Evento "]
["Habilidad en la prestación del servicio:",1,null,null,null,null,null,null,null,null,null,null,null,null,null,null,null,null,null,null,null,null,null,null,null,null,null,null,null,null,null,null,null,null,null,null,null,null,null,null,null,null,null,null,null,null,null,null,null,null,null,null,{"$f":"COUNTA(C56:AZ56)","v":0},{"$f":"+BA56*1","v":0},{"$f":"+BA56/$B$10","v":{"$error":"#DIV/0!"}},{"$f":"SUM(BC56:BC60)","v":{"$error":"#DIV/0!"}},{"$f":"SUM(BB56:BB60)","v":0},{"$f":"IF(BD56>100%,\"Verifique  diligenciamiento\",IF(BD56<100%,\"falta una respuesta\",\"ok\"))","v":{"$error":"#DIV/0!"}}]
[null,2,null,null,null,null,null,null,null,null,null,null,null,null,null,null,null,null,null,null,null,null,null,null,null,null,null,null,null,null,null,null,null,null,null,null,null,null,null,null,null,null,null,null,null,null,null,null,null,null,null,null,0,{"$f":"+BA57*2","v":0},{"$error":"#DIV/0!"}]
[null,3,null,null,null,null,null,null,null,null,null,null,null,null,null,null,null,null,null,null,null,null,null,null,null,null,null,null,null,null,null,null,null,null,null,null,null,null,null,null,null,null,null,null,null,null,null,null,null,null,null,null,0,{"$f":"+BA58*3","v":0},{"$error":"#DIV/0!"}]
[null,4,null,null,null,null,null,null,null,null,null,null,null,null,null,null,null,null,null,null,null,null,null,null,null,null,null,null,null,null,null,null,null,null,null,null,null,null,null,null,null,null,null,null,null,null,null,null,null,null,null,null,0,{"$f":"+BA59*4","v":0},{"$error":"#DIV/0!"}]
[null,5,null,null,null,null,null,null,null,null,null,null,null,null,null,null,null,null,null,null,null,null,null,null,null,null,null,null,null,null,null,null,null,null,null,null,null,null,null,null,null,null,null,null,null,null,null,null,null,null,null,null,0,{"$f":"+BA60*5","v":0},{"$error":"#DIV/0!"}]
["Capacidad para dar soluciones y alternativas:",1,null,null,null,null,null,null,null,null,null,null,null,null,null,null,null,null,null,null,null,null,null,null,null,null,null,null,null,null,null,null,null,null,null,null,null,null,null,null,null,null,null,null,null,null,null,null,null,null,null,null,0,{"$f":"+BA61*1","v":0},{"$error":"#DIV/0!"},{"$f":"SUM(BC61:BC65)","v":{"$error":"#DIV/0!"}},{"$f":"SUM(BB61:BB65)","v":0},{"$error":"#DIV/0!"}]
[null,2,null,null,null,null,null,null,null,null,null,null,null,null,null,null,null,null,null,null,null,null,null,null,null,null,null,null,null,null,null,null,null,null,null,null,null,null,null,null,null,null,null,null,null,null,null,null,null,null,null,null,0,{"$f":"+BA62*2","v":0},{"$error":"#DIV/0!"}]
[null,3,null,null,null,null,null,null,null,null,null,null,null,null,null,null,null,null,null,null,null,null,null,null,null,null,null,null,null,null,null,null,null,null,null,null,null,null,null,null,null,null,null,null,null,null,null,null,null,null,null,null,0,{"$f":"+BA63*3","v":0},{"$error":"#DIV/0!"}]
[null,4,null,null,null,null,null,null,null,null,null,null,null,null,null,null,null,null,null,null,null,null,null,null,null,null,null,null,null,null,null,null,null,null,null,null,null,null,null,null,null,null,null,null,null,null,null,null,null,null,null,null,0,{"$f":"+BA64*4","v":0},{"$error":"#DIV/0!"}]
[null,5,null,null,null,null,null,null,null,null,null,null,null,null,null,null,null,null,null,null,null,null,null,null,null,null,null,null,null,null,null,null,null,null,null,null,null,null,null,null,null,null,null,null,null,null,null,null,null,null,null,null,0,{"$f":"+BA65*5","v":0},{"$error":"#DIV/0!"}]
["Tallerista /Facilitador /Capacitador"]
["Dominio del tema o de la actividad realizada:",1,null,null,null,null,null,null,null,null,null,null,null,null,null,null,null,null,null,null,null,null,null,null,null,null,null,null,null,null,null,null,null,null,null,null,null,null,null,null,null,null,null,null,null,null,null,null,null,null,null,null,{"$f":"COUNTA(C67:AZ67)","v":0},{"$f":"+BA67*1","v":0},{"$f":"+BA67/$B$10","v":{"$error":"#DIV/0!"}},{"$f":"SUM(BC67:BC71)","v":{"$error":"#DIV/0!"}},{"$f":"SUM(BB67:BB71)","v":0},{"$f":"IF(BD67>100%,\"Verifique  diligenciamiento\",IF(BD67<100%,\"falta una respuesta\",\"ok\"))","v":{"$error":"#DIV/0!"}}]
[null,2,null,null,null,null,null,null,null,null,null,null,null,null,null,null,null,null,null,null,null,null,null,null,null,null,null,null,null,null,null,null,null,null,null,null,null,null,null,null,null,null,null,null,null,null,null,null,null,null,null,null,0,{"$f":"+BA68*2","v":0},{"$error":"#DIV/0!"}]
[null,3,null,null,null,null,null,null,null,null,null,null,null,null,null,null,null,null,null,null,null,null,null,null,null,null,null,null,null,null,null,null,null,null,null,null,null,null,null,null,null,null,null,null,null,null,null,null,null,null,null,null,0,{"$f":"+BA69*3","v":0},{"$error":"#DIV/0!"}]
[null,4,null,null,null,null,null,null,null,null,null,null,null,null,null,null,null,null,null,null,null,null,null,null,null,null,null,null,null,null,null,null,null,null,null,null,null,null,null,null,null,null,null,null,null,null,null,null,null,null,null,null,0,{"$f":"+BA70*4","v":0},{"$error":"#DIV/0!"}]
[null,5,null,null,null,null,null,null,null,null,null,null,null,null,null,null,null,null,null,null,null,null,null,null,null,null,null,null,null,null,null,null,null,null,null,null,null,null,null,null,null,null,null,null,null,null,null,null,null,null,null,null,0,{"$f":"+BA71*5","v":0},{"$error":"#DIV/0!"}]
["Se resolvieron las inquietudes del taller,curso, charla o actividad realizada:",1,null,null,null,null,null,null,null,null,null,null,null,null,null,null,null,null,null,null,null,null,null,null,null,null,null,null,null,null,null,null,null,null,null,null,null,null,null,null,null,null,null,null,null,null,null,null,null,null,null,null,{"$f":"COUNTA(C72:AZ72)","v":0},{"$f":"+BA72*1","v":0},{"$f":"+BA72/$B$10","v":{"$error":"#DIV/0!"}},{"$f":"SUM(BC72:BC76)","v":{"$error":"#DIV/0!"}},{"$f":"SUM(BB72:BB76)","v":0},{"$f":"IF(BD72>100%,\"Verifique  diligenciamiento\",IF(BD72<100%,\"falta una respuesta\",\"ok\"))","v":{"$error":"#DIV/0!"}}]
[null,2,null,null,null,null,null,null,null,null,null,null,null,null,null,null,null,null,null,null,null,null,null,null,null,null,null,null,null,null,null,null,null,null,null,null,null,null,null,null,null,null,null,null,null,null,null,null,null,null,null,null,0,{"$f":"+BA73*2","v":0},{"$error":"#DIV/0!"}]
[null,3,null,null,null,null,null,null,null,null,null,null,null,null,null,null,null,null,null,null,null,null,null,null,null,null,null,null,null,null,null,null,null,null,null,null,null,null,null,null,null,null,null,null,null,null,null,null,null,null,null,null,0,{"$f":"+BA74*3","v":0},{"$error":"#DIV/0!"}]
[null,4,null,null,null,null,null,null,null,null,null,null,null,null,null,null,null,null,null,null,null,null,null,null,null,null,null,null,null,null,null,null,null,null,null,null,null,null,null,null,null,null,null,null,null,null,null,null,null,null,null,null,0,{"$f":"+BA75*4","v":0},{"$error":"#DIV/0!"}]
[null,5,null,null,null,null,null,null,null,null,null,null,null,null,null,null,null,null,null,null,null,null,null,null,null,null,null,null,null,null,null,null,null,null,null,null,null,null,null,null,null,null,null,null,null,null,null,null,null,null,null,null,0,{"$f":"+BA76*5","v":0},{"$error":"#DIV/0!"}]
["El contenido fue oportuno y de calidad:",1,null,null,null,null,null,null,null,null,null,null,null,null,null,null,null,null,null,null,null,null,null,null,null,null,null,null,null,null,null,null,null,null,null,null,null,null,null,null,null,null,null,null,null,null,null,null,null,null,null,null,{"$f":"COUNTA(C77:AZ77)","v":0},{"$f":"+BA77*1","v":0},{"$f":"+BA77/$B$10","v":{"$error":"#DIV/0!"}},{"$f":"SUM(BC77:BC81)","v":{"$error":"#DIV/0!"}},{"$f":"SUM(BB77:BB81)","v":0},{"$f":"IF(BD77>100%,\"Verifique  diligenciamiento\",IF(BD77<100%,\"falta una respuesta\",\"ok\"))","v":{"$error":"#DIV/0!"}}]
[null,2,null,null,null,null,null,null,null,null,null,null,null,null,null,null,null,null,null,null,null,null,null,null,null,null,null,null,null,null,null,null,null,null,null,null,null,null,null,null,null,null,null,null,null,null,null,null,null,null,null,null,0,{"$f":"+BA78*2","v":0},{"$error":"#DIV/0!"}]
[null,3,null,null,null,null,null,null,null,null,null,null,null,null,null,null,null,null,null,null,null,null,null,null,null,null,null,null,null,null,null,null,null,null,null,null,null,null,null,null,null,null,null,null,null,null,null,null,null,null,null,null,0,{"$f":"+BA79*3","v":0},{"$error":"#DIV/0!"}]
[null,4,null,null,null,null,null,null,null,null,null,null,null,null,null,null,null,null,null,null,null,null,null,null,null,null,null,null,null,null,null,null,null,null,null,null,null,null,null,null,null,null,null,null,null,null,null,null,null,null,null,null,0,{"$f":"+BA80*4","v":0},{"$error":"#DIV/0!"}]
[null,5,null,null,null,null,null,null,null,null,null,null,null,null,null,null,null,null,null,null,null,null,null,null,null,null,null,null,null,null,null,null,null,null,null,null,null,null,null,null,null,null,null,null,null,null,null,null,null,null,null,null,0,{"$f":"+BA81*5","v":0},{"$error":"#DIV/0!"}]
["Los temas tratados fueron de utilidad y de aprendizaje:",1,null,null,null,null,null,null,null,null,null,null,null,null,null,null,null,null,null,null,null,null,null,null,null,null,null,null,null,null,null,null,null,null,null,null,null,null,null,null,null,null,null,null,null,null,null,null,null,null,null,null,{"$f":"COUNTA(C82:AZ82)","v":0},{"$f":"+BA82*1","v":0},{"$f":"+BA82/$B$10","v":{"$error":"#DIV/0!"}},{"$f":"SUM(BC82:BC86)","v":{"$error":"#DIV/0!"}},{"$f":"SUM(BB82:BB86)","v":0},{"$f":"IF(BD82>100%,\"Verifique  diligenciamiento\",IF(BD82<100%,\"falta una respuesta\",\"ok\"))","v":{"$error":"#DIV/0!"}}]
[null,2,null,null,null,null,null,null,null,null,null,null,null,null,null,null,null,null,null,null,null,null,null,null,null,null,null,null,null,null,null,null,null,null,null,null,null,null,null,null,null,null,null,null,null,null,null,null,null,null,null,null,0,{"$f":"+BA83*2","v":0},{"$error":"#DIV/0!"}]
[null,3,null,null,null,null,null,null,null,null,null,null,null,null,null,null,null,null,null,null,null,null,null,null,null,null,null,null,null,null,null,null,null,null,null,null,null,null,null,null,null,null,null,null,null,null,null,null,null,null,null,null,0,{"$f":"+BA84*3","v":0},{"$error":"#DIV/0!"}]
[null,4,null,null,null,null,null,null,null,null,null,null,null,null,null,null,null,null,null,null,null,null,null,null,null,null,null,null,null,null,null,null,null,null,null,null,null,null,null,null,null,null,null,null,null,null,null,null,null,null,null,null,0,{"$f":"+BA85*4","v":0},{"$error":"#DIV/0!"}]
[null,5,null,null,null,null,null,null,null,null,null,null,null,null,null,null,null,null,null,null,null,null,null,null,null,null,null,null,null,null,null,null,null,null,null,null,null,null,null,null,null,null,null,null,null,null,null,null,null,null,null,null,0,{"$f":"+BA86*5","v":0},{"$error":"#DIV/0!"}]
["El capacitador se dio a entender:",1,null,null,null,null,null,null,null,null,null,null,null,null,null,null,null,null,null,null,null,null,null,null,null,null,null,null,null,null,null,null,null,null,null,null,null,null,null,null,null,null,null,null,null,null,null,null,null,null,null,null,{"$f":"COUNTA(C87:AZ87)","v":0},{"$f":"+BA87*1","v":0},{"$f":"+BA87/$B$10","v":{"$error":"#DIV/0!"}},{"$f":"SUM(BC87:BC91)","v":{"$error":"#DIV/0!"}},{"$f":"SUM(BB87:BB91)","v":0},{"$f":"IF(BD87>100%,\"Verifique  diligenciamiento\",IF(BD87<100%,\"falta una respuesta\",\"ok\"))","v":{"$error":"#DIV/0!"}}]
[null,2,null,null,null,null,null,null,null,null,null,null,null,null,null,null,null,null,null,null,null,null,null,null,null,null,null,null,null,null,null,null,null,null,null,null,null,null,null,null,null,null,null,null,null,null,null,null,null,null,null,null,0,{"$f":"+BA88*2","v":0},{"$error":"#DIV/0!"}]
[null,3,null,null,null,null,null,null,null,null,null,null,null,null,null,null,null,null,null,null,null,null,null,null,null,null,null,null,null,null,null,null,null,null,null,null,null,null,null,null,null,null,null,null,null,null,null,null,null,null,null,null,0,{"$f":"+BA89*3","v":0},{"$error":"#DIV/0!"}]
[null,4,null,null,null,null,null,null,null,null,null,null,null,null,null,null,null,null,null,null,null,null,null,null,null,null,null,null,null,null,null,null,null,null,null,null,null,null,null,null,null,null,null,null,null,null,null,null,null,null,null,null,0,{"$f":"+BA90*4","v":0},{"$error":"#DIV/0!"}]
[null,5,null,null,null,null,null,null,null,null,null,null,null,null,null,null,null,null,null,null,null,null,null,null,null,null,null,null,null,null,null,null,null,null,null,null,null,null,null,null,null,null,null,null,null,null,null,null,null,null,null,null,0,{"$f":"+BA91*5","v":0},{"$error":"#DIV/0!"}]
["Escenografias y Materiales"]
["Estado de las escenografías:",1,null,null,null,null,null,null,null,null,null,null,null,null,null,null,null,null,null,null,null,null,null,null,null,null,null,null,null,null,null,null,null,null,null,null,null,null,null,null,null,null,null,null,null,null,null,null,null,null,null,null,{"$f":"COUNTA(C93:AZ93)","v":0},{"$f":"+BA93*1","v":0},{"$f":"+BA93/$B$10","v":{"$error":"#DIV/0!"}},{"$f":"SUM(BC93:BC97)","v":{"$error":"#DIV/0!"}},{"$f":"SUM(BB93:BB97)","v":0},{"$f":"IF(BD93>100%,\"Verifique  diligenciamiento\",IF(BD93<100%,\"falta una respuesta\",\"ok\"))","v":{"$error":"#DIV/0!"}}]
[null,2,null,null,null,null,null,null,null,null,null,null,null,null,null,null,null,null,null,null,null,null,null,null,null,null,null,null,null,null,null,null,null,null,null,null,null,null,null,null,null,null,null,null,null,null,null,null,null,null,null,null,0,{"$f":"+BA94*2","v":0},{"$error":"#DIV/0!"}]
[null,3,null,null,null,null,null,null,null,null,null,null,null,null,null,null,null,null,null,null,null,null,null,null,null,null,null,null,null,null,null,null,null,null,null,null,null,null,null,null,null,null,null,null,null,null,null,null,null,null,null,null,0,{"$f":"+BA95*3","v":0},{"$error":"#DIV/0!"}]
[null,4,null,null,null,null,null,null,null,null,null,null,null,null,null,null,null,null,null,null,null,null,null,null,null,null,null,null,null,null,null,null,null,null,null,null,null,null,null,null,null,null,null,null,null,null,null,null,null,null,null,null,0,{"$f":"+BA96*4","v":0},{"$error":"#DIV/0!"}]
[null,5,null,null,null,null,null,null,null,null,null,null,null,null,null,null,null,null,null,null,null,null,null,null,null,null,null,null,null,null,null,null,null,null,null,null,null,null,null,null,null,null,null,null,null,null,null,null,null,null,null,null,0,{"$f":"+BA97*5","v":0},{"$error":"#DIV/0!"}]
["Estado de los materiales utilizados:",1,null,null,null,null,null,null,null,null,null,null,null,null,null,null,null,null,null,null,null,null,null,null,null,null,null,null,null,null,null,null,null,null,null,null,null,null,null,null,null,null,null,null,null,null,null,null,null,null,null,null,0,{"$f":"+BA98*1","v":0},{"$error":"#DIV/0!"},{"$f":"SUM(BC98:BC102)","v":{"$error":"#DIV/0!"}},{"$f":"SUM(BB98:BB102)","v":0},{"$f":"IF(BD98>100%,\"Verifique  diligenciamiento\",IF(BD98<100%,\"falta una respuesta\",\"ok\"))","v":{"$error":"#DIV/0!"}}]
[null,2,null,null,null,null,null,null,null,null,null,null,null,null,null,null,null,null,null,null,null,null,null,null,null,null,null,null,null,null,null,null,null,null,null,null,null,null,null,null,null,null,null,null,null,null,null,null,null,null,null,null,0,{"$f":"+BA99*2","v":0},{"$error":"#DIV/0!"}]
[null,3,null,null,null,null,null,null,null,null,null,null,null,null,null,null,null,null,null,null,null,null,null,null,null,null,null,null,null,null,null,null,null,null,null,null,null,null,null,null,null,null,null,null,null,null,null,null,null,null,null,null,0,{"$f":"+BA100*3","v":0},{"$error":"#DIV/0!"}]
[null,4,null,null,null,null,null,null,null,null,null,null,null,null,null,null,null,null,null,null,null,null,null,null,null,null,null,null,null,null,null,null,null,null,null,null,null,null,null,null,null,null,null,null,null,null,null,null,null,null,null,null,0,{"$f":"+BA101*4","v":0},{"$error":"#DIV/0!"}]
[null,5,null,null,null,null,null,null,null,null,null,null,null,null,null,null,null,null,null,null,null,null,null,null,null,null,null,null,null,null,null,null,null,null,null,null,null,null,null,null,null,null,null,null,null,null,null,null,null,null,null,null,0,{"$f":"+BA102*5","v":0},{"$error":"#DIV/0!"}]
["Calidad en la conexión:",1,null,null,null,null,null,null,null,null,null,null,null,null,null,null,null,null,null,null,null,null,null,null,null,null,null,null,null,null,null,null,null,null,null,null,null,null,null,null,null,null,null,null,null,null,null,null,null,null,null,null,0,{"$f":"+BA103*1","v":0},{"$error":"#DIV/0!"},{"$f":"SUM(BC103:BC107)","v":{"$error":"#DIV/0!"}},{"$f":"SUM(BB103:BB107)","v":0},{"$error":"#DIV/0!"}]
[null,2,null,null,null,null,null,null,null,null,null,null,null,null,null,null,null,null,null,null,null,null,null,null,null,null,null,null,null,null,null,null,null,null,null,null,null,null,null,null,null,null,null,null,null,null,null,null,null,null,null,null,0,{"$f":"+BA104*2","v":0},{"$error":"#DIV/0!"}]
[null,3,null,null,null,null,null,null,null,null,null,null,null,null,null,null,null,null,null,null,null,null,null,null,null,null,null,null,null,null,null,null,null,null,null,null,null,null,null,null,null,null,null,null,null,null,null,null,null,null,null,null,0,{"$f":"+BA105*3","v":0},{"$error":"#DIV/0!"}]
[null,4,null,null,null,null,null,null,null,null,null,null,null,null,null,null,null,null,null,null,null,null,null,null,null,null,null,null,null,null,null,null,null,null,null,null,null,null,null,null,null,null,null,null,null,null,null,null,null,null,null,null,0,{"$f":"+BA106*4","v":0},{"$error":"#DIV/0!"}]
[null,5,null,null,null,null,null,null,null,null,null,null,null,null,null,null,null,null,null,null,null,null,null,null,null,null,null,null,null,null,null,null,null,null,null,null,null,null,null,null,null,null,null,null,null,null,null,null,null,null,null,null,0,{"$f":"+BA107*5","v":0},{"$error":"#DIV/0!"}]
["Adecuación y ambientación del lugar:",1,null,null,null,null,null,null,null,null,null,null,null,null,null,null,null,null,null,null,null,null,null,null,null,null,null,null,null,null,null,null,null,null,null,null,null,null,null,null,null,null,null,null,null,null,null,null,null,null,null,null,0,{"$f":"+BA108*1","v":0},{"$error":"#DIV/0!"},{"$f":"SUM(BC108:BC112)","v":{"$error":"#DIV/0!"}},{"$f":"SUM(BB108:BB112)","v":0},{"$error":"#DIV/0!"}]
[null,2,null,null,null,null,null,null,null,null,null,null,null,null,null,null,null,null,null,null,null,null,null,null,null,null,null,null,null,null,null,null,null,null,null,null,null,null,null,null,null,null,null,null,null,null,null,null,null,null,null,null,0,{"$f":"+BA109*2","v":0},{"$error":"#DIV/0!"}]
[null,3,null,null,null,null,null,null,null,null,null,null,null,null,null,null,null,null,null,null,null,null,null,null,null,null,null,null,null,null,null,null,null,null,null,null,null,null,null,null,null,null,null,null,null,null,null,null,null,null,null,null,0,{"$f":"+BA110*3","v":0},{"$error":"#DIV/0!"}]
[null,4,null,null,null,null,null,null,null,null,null,null,null,null,null,null,null,null,null,null,null,null,null,null,null,null,null,null,null,null,null,null,null,null,null,null,null,null,null,null,null,null,null,null,null,null,null,null,null,null,null,null,0,{"$f":"+BA111*4","v":0},{"$error":"#DIV/0!"}]
[null,5,null,null,null,null,null,null,null,null,null,null,null,null,null,null,null,null,null,null,null,null,null,null,null,null,null,null,null,null,null,null,null,null,null,null,null,null,null,null,null,null,null,null,null,null,null,null,null,null,null,null,0,{"$f":"+BA112*5","v":0},{"$error":"#DIV/0!"}]
["Seguridad"]
["Seguridad de la plataforma utilizada:",1,null,null,null,null,null,null,null,null,null,null,null,null,null,null,null,null,null,null,null,null,null,null,null,null,null,null,null,null,null,null,null,null,null,null,null,null,null,null,null,null,null,null,null,null,null,null,null,null,null,null,{"$f":"COUNTA(C114:AZ114)","v":0},{"$f":"+BA114*1","v":0},{"$f":"+BA114/$B$10","v":{"$error":"#DIV/0!"}},{"$f":"SUM(BC114:BC118)","v":{"$error":"#DIV/0!"}},{"$f":"SUM(BB114:BB118)","v":0},{"$f":"IF(BD114>100%,\"Verifique  diligenciamiento\",IF(BD114<100%,\"falta una respuesta\",\"ok\"))","v":{"$error":"#DIV/0!"}}]
[null,2,null,null,null,null,null,null,null,null,null,null,null,null,null,null,null,null,null,null,null,null,null,null,null,null,null,null,null,null,null,null,null,null,null,null,null,null,null,null,null,null,null,null,null,null,null,null,null,null,null,null,0,{"$f":"+BA115*2","v":0},{"$error":"#DIV/0!"}]
[null,3,null,null,null,null,null,null,null,null,null,null,null,null,null,null,null,null,null,null,null,null,null,null,null,null,null,null,null,null,null,null,null,null,null,null,null,null,null,null,null,null,null,null,null,null,null,null,null,null,null,null,0,{"$f":"+BA116*3","v":0},{"$error":"#DIV/0!"}]
[null,4,null,null,null,null,null,null,null,null,null,null,null,null,null,null,null,null,null,null,null,null,null,null,null,null,null,null,null,null,null,null,null,null,null,null,null,null,null,null,null,null,null,null,null,null,null,null,null,null,null,null,0,{"$f":"+BA117*4","v":0},{"$error":"#DIV/0!"}]
[null,5,null,null,null,null,null,null,null,null,null,null,null,null,null,null,null,null,null,null,null,null,null,null,null,null,null,null,null,null,null,null,null,null,null,null,null,null,null,null,null,null,null,null,null,null,null,null,null,null,null,null,0,{"$f":"+BA118*5","v":0},{"$error":"#DIV/0!"}]
["Comportamiento de los asistentes (manejo adecuado del de chat, cámara y micrófono):",1,null,null,null,null,null,null,null,null,null,null,null,null,null,null,null,null,null,null,null,null,null,null,null,null,null,null,null,null,null,null,null,null,null,null,null,null,null,null,null,null,null,null,null,null,null,null,null,null,null,null,0,{"$f":"+BA119*1","v":0},{"$error":"#DIV/0!"},{"$f":"SUM(BC119:BC123)","v":{"$error":"#DIV/0!"}},{"$f":"SUM(BB119:BB123)","v":0},{"$error":"#DIV/0!"}]
[null,2,null,null,null,null,null,null,null,null,null,null,null,null,null,null,null,null,null,null,null,null,null,null,null,null,null,null,null,null,null,null,null,null,null,null,null,null,null,null,null,null,null,null,null,null,null,null,null,null,null,null,0,{"$f":"+BA120*2","v":0},{"$error":"#DIV/0!"}]
[null,3,null,null,null,null,null,null,null,null,null,null,null,null,null,null,null,null,null,null,null,null,null,null,null,null,null,null,null,null,null,null,null,null,null,null,null,null,null,null,null,null,null,null,null,null,null,null,null,null,null,null,0,{"$f":"+BA121*3","v":0},{"$error":"#DIV/0!"}]
[null,4,null,null,null,null,null,null,null,null,null,null,null,null,null,null,null,null,null,null,null,null,null,null,null,null,null,null,null,null,null,null,null,null,null,null,null,null,null,null,null,null,null,null,null,null,null,null,null,null,null,null,0,{"$f":"+BA122*4","v":0},{"$error":"#DIV/0!"}]
[null,5,null,null,null,null,null,null,null,null,null,null,null,null,null,null,null,null,null,null,null,null,null,null,null,null,null,null,null,null,null,null,null,null,null,null,null,null,null,null,null,null,null,null,null,null,null,null,null,null,null,null,0,{"$f":"+BA123*5","v":0},{"$error":"#DIV/0!"}]
["Atención Prestada por parte del Operador Logístico\n"]
["Servicio amable y oportuno:",1,null,null,null,null,null,null,null,null,null,null,null,null,null,null,null,null,null,null,null,null,null,null,null,null,null,null,null,null,null,null,null,null,null,null,null,null,null,null,null,null,null,null,null,null,null,null,null,null,null,null,{"$f":"COUNTA(C125:AZ125)","v":0},{"$f":"+BA125*1","v":0},{"$f":"+BA125/$B$10","v":{"$error":"#DIV/0!"}},{"$f":"SUM(BC125:BC129)","v":{"$error":"#DIV/0!"}},{"$f":"SUM(BB125:BB129)","v":0},{"$f":"IF(BD125>100%,\"Verifique  diligenciamiento\",IF(BD125<100%,\"falta una respuesta\",\"ok\"))","v":{"$error":"#DIV/0!"}}]
[null,2,null,null,null,null,null,null,null,null,null,null,null,null,null,null,null,null,null,null,null,null,null,null,null,null,null,null,null,null,null,null,null,null,null,null,null,null,null,null,null,null,null,null,null,null,null,null,null,null,null,null,0,{"$f":"+BA126*2","v":0},{"$error":"#DIV/0!"}]
[null,3,null,null,null,null,null,null,null,null,null,null,null,null,null,null,null,null,null,null,null,null,null,null,null,null,null,null,null,null,null,null,null,null,null,null,null,null,null,null,null,null,null,null,null,null,null,null,null,null,null,null,0,{"$f":"+BA127*3","v":0},{"$error":"#DIV/0!"}]
[null,4,null,null,null,null,null,null,null,null,null,null,null,null,null,null,null,null,null,null,null,null,null,null,null,null,null,null,null,null,null,null,null,null,null,null,null,null,null,null,null,null,null,null,null,null,null,null,null,null,null,null,0,{"$f":"+BA128*4","v":0},{"$error":"#DIV/0!"}]
[null,5,null,null,null,null,null,null,null,null,null,null,null,null,null,null,null,null,null,null,null,null,null,null,null,null,null,null,null,null,null,null,null,null,null,null,null,null,null,null,null,null,null,null,null,null,null,null,null,null,null,null,0,{"$f":"+BA129*5","v":0},{"$error":"#DIV/0!"}]
["Habilidad en la prestación del servicio brindado por el operador logístico:",1,null,null,null,null,null,null,null,null,null,null,null,null,null,null,null,null,null,null,null,null,null,null,null,null,null,null,null,null,null,null,null,null,null,null,null,null,null,null,null,null,null,null,null,null,null,null,null,null,null,null,0,{"$f":"+BA130*1","v":0},{"$error":"#DIV/0!"},{"$f":"SUM(BC130:BC134)","v":{"$error":"#DIV/0!"}},{"$f":"SUM(BB130:BB134)","v":0},{"$f":"IF(BD130>100%,\"Verifique  diligenciamiento\",IF(BD130<100%,\"falta una respuesta\",\"ok\"))","v":{"$error":"#DIV/0!"}}]
[null,2,null,null,null,null,null,null,null,null,null,null,null,null,null,null,null,null,null,null,null,null,null,null,null,null,null,null,null,null,null,null,null,null,null,null,null,null,null,null,null,null,null,null,null,null,null,null,null,null,null,null,0,{"$f":"+BA131*2","v":0},{"$error":"#DIV/0!"}]
[null,3,null,null,null,null,null,null,null,null,null,null,null,null,null,null,null,null,null,null,null,null,null,null,null,null,null,null,null,null,null,null,null,null,null,null,null,null,null,null,null,null,null,null,null,null,null,null,null,null,null,null,0,{"$f":"+BA132*3","v":0},{"$error":"#DIV/0!"}]
[null,4,null,null,null,null,null,null,null,null,null,null,null,null,null,null,null,null,null,null,null,null,null,null,null,null,null,null,null,null,null,null,null,null,null,null,null,null,null,null,null,null,null,null,null,null,null,null,null,null,null,null,0,{"$f":"+BA133*4","v":0},{"$error":"#DIV/0!"}]
[null,5,null,null,null,null,null,null,null,null,null,null,null,null,null,null,null,null,null,null,null,null,null,null,null,null,null,null,null,null,null,null,null,null,null,null,null,null,null,null,null,null,null,null,null,null,null,null,null,null,null,null,0,{"$f":"+BA134*5","v":0},{"$error":"#DIV/0!"}]
["Atención a solicitudes oportunas:",1,null,null,null,null,null,null,null,null,null,null,null,null,null,null,null,null,null,null,null,null,null,null,null,null,null,null,null,null,null,null,null,null,null,null,null,null,null,null,null,null,null,null,null,null,null,null,null,null,null,null,0,{"$f":"+BA135*1","v":0},{"$error":"#DIV/0!"},{"$f":"SUM(BC135:BC139)","v":{"$error":"#DIV/0!"}},{"$f":"SUM(BB135:BB139)","v":0},{"$f":"IF(BD135>100%,\"Verifique  diligenciamiento\",IF(BD135<100%,\"falta una respuesta\",\"ok\"))","v":{"$error":"#DIV/0!"}}]
[null,2,null,null,null,null,null,null,null,null,null,null,null,null,null,null,null,null,null,null,null,null,null,null,null,null,null,null,null,null,null,null,null,null,null,null,null,null,null,null,null,null,null,null,null,null,null,null,null,null,null,null,0,{"$f":"+BA136*2","v":0},{"$error":"#DIV/0!"}]
[null,3,null,null,null,null,null,null,null,null,null,null,null,null,null,null,null,null,null,null,null,null,null,null,null,null,null,null,null,null,null,null,null,null,null,null,null,null,null,null,null,null,null,null,null,null,null,null,null,null,null,null,0,{"$f":"+BA137*3","v":0},{"$error":"#DIV/0!"}]
[null,4,null,null,null,null,null,null,null,null,null,null,null,null,null,null,null,null,null,null,null,null,null,null,null,null,null,null,null,null,null,null,null,null,null,null,null,null,null,null,null,null,null,null,null,null,null,null,null,null,null,null,0,{"$f":"+BA138*4","v":0},{"$error":"#DIV/0!"}]
[null,5,null,null,null,null,null,null,null,null,null,null,null,null,null,null,null,null,null,null,null,null,null,null,null,null,null,null,null,null,null,null,null,null,null,null,null,null,null,null,null,null,null,null,null,null,null,null,null,null,null,null,0,{"$f":"+BA139*5","v":0},{"$error":"#DIV/0!"}]
[null,null,null,null,null,null,null,null,null,null,null,null,null,null,null,null,null,null,null,null,null,null,null,null,null,null,null,null,null,null,null,null,null,null,null,null,null,null,null,null,null,null,null,null,null,null,null,null,null,null,null,null,null,null,null,"Número de preguntas contestas",{"$f":"COUNTIF(BE13:BE139,\">0\")","v":0}]
[null,null,null,null,null,null,null,null,null,null,null,null,null,null,null,null,null,null,null,null,null,null,null,null,null,null,null,null,null,null,null,null,null,null,null,null,null,null,null,null,null,null,null,null,null,null,null,null,null,null,null,null,null,null,null,"Sumatoria calificación encuestas",{"$f":"SUM(BE13:BE139)/BE140","v":{"$error":"#DIV/0!"}}]
["Antes de imprimir este documento… piense en el medio ambiente!  \n     Cualquier copia impresa de este documento se considera como COPIA NO CONTROLADA.\nLOS DATOS PROPORCIONADOS SERÁN TRATADOS DE ACUERDO A LA POLÌTICA DE TRATAMIENTO DE DATOS PERSONALES DEL ICBF Y A LA LEY 1581 DE 2012"]